Workbook

Sheet Home
B7: Project | F7: Enter Project Name
B8: Information
B9: Climate Region | F9: North East | H9: Chiller Cooling | J9: Water Cooled | L9: Plant Design | N9: Primary/Secondary
L11: Value | N11: Unit
B12: Electricity Cost (Average) | L12: 0.1701 | N12: $/kWh
B13: Chilled Water Plant Load (Design Cooling Load) | L13: 1791 | N13: tons
B14: Number Of Chillers | L14: 2 | N14: pcs.
B15: Operating Hours / Day | L15: 12 | N15: hours
B16: Operating Days / Week | L16: 5 | N16: days
B17: Chiller Design Integrated Part Load Value (IPLV) | L17: 0.6 | N17: kW/ton
B18: =IF($N$9=Chiller!$L$11,"Actual Secondary Pump Head (Design)","Actual Primary Pump Head (Design)") -> Actual Secondary Pump Head (Design) | L18: 135 | N18: ft.
B19: Minimum Distribution Pump Flow Percentage | L19: 30 | N19: %
B20: Pump, VFD, Motor Efficiency (Average) | L20: 65 | N20: %
B21: Design Delta T of distribution system | L21: 14 | N21: °F
B22: Actual Delta T (Prior to Energy Valve Installation) | L22: 11 | N22: °F
B23: Future Delta T (Energy Valve Delta T Manager Setting) | L23: 14 | N23: °F
B25: Delta-T [°F] | D25: Avg [GPM] | F25: Avg [Tons] | H25: Pumping Cost | J25: Chiller Cost | L25: Total Cost | N25: Energy [kWh]
B26: =ROUND(IF($L$22-2<=0,$L$22,$L$22-($B$28-$B27)),0) -> 10 | D26: =+Pump!I23 -> 2505.353143 | F26: =+Chiller!J20 -> 1461.456 | H26: =Pump!I21 -> 37110.29992 | J26: =Chiller!J19 -> 96052.45021 | L26: =J26+H26 -> 133162.7501 | N26: =L26/$L$12 -> 782849.795
B27: =L22 -> 11 | D27: =+Pump!I32 -> 2411.56987 | F27: =+Chiller!J29 -> 1406.749091 | H27: =Pump!I30 -> 34259.16288 | J27: =Chiller!J28 -> 94006.4747 | L27: 128265.6376 | N27: 754060.1857
B28: =ROUND(QUOTIENT($L$23-$L$22,3)+B27,0) -> 12 | D28: =+Pump!I41 -> 2251.542857 | F28: =+Chiller!J38 -> 1313.4 | H28: =Pump!I39 -> 28097.89354 | J28: =Chiller!J37 -> 87247.24634 | L28: 115345.1399 | N28: 678101.9393
B29: =ROUND(QUOTIENT($L$23-$L$22,3)+B28,0) -> 13 | D29: =+Pump!I50 -> 2097.241319 | F29: =+Chiller!J47 -> 1223.390769 | H29: =+Pump!I48 -> 22898.37098 | J29: =Chiller!J46 -> 83881.00458 | L29: 106779.3756 | N29: 627744.7123
B30: =ROUND(IF(L23<=L21,L23,L21),0) -> 14 | D30: =+Pump!I59 -> 1964.982857 | F30: =+Chiller!J56 -> 1146.24 | H30: =+Pump!I57 -> 19071.23387 | J30: =Chiller!J55 -> 80995.65451 | L30: 100066.8884 | N30: 588282.7065
B31: =ROUND(IF(L21>L23,L21,IF(L23>L21,L23,L23+(B30-B29))),0) -> 15 | D31: =+Pump!I68 -> 1840.124571 | F31: =+Chiller!J65 -> 1073.406 | H31: =+Pump!I66 -> 15665.69039 | J31: =Chiller!J64 -> 78271.74665 | L31: 93937.43703 | N31: 552248.3071
B32: =CONCATENATE("Annual Energy Savings for changing Delta T from ",L22," to ",L23) -> Annual Energy Savings for changing Delta T from 11 to 14 | H32: =+H33/H27 -> 0.4433245805 | J32: =+J33/J27 -> 0.1384034475 | L32: =+L33/L27 -> 0.2198464821 | N32: %
H33: =VLOOKUP($L$22,$B$26:$N$31,7)-VLOOKUP($L$23,$B$26:$N$31,7) -> 15187.92901 | J33: =VLOOKUP($L$22,$B$26:$N$31,9)-VLOOKUP($L$23,$B$26:$N$31,9) -> 13010.82019 | L33: =VLOOKUP($L$22,$B$26:$N$31,11)-VLOOKUP($L$23,$B$26:$N$31,11) -> 28198.7492 | N33: $
L35: Value | N35: Unit
B36: Cooling Tower Water treatment chemicals savings (reduced runtime) | L36: 600 | N36: $/Year
B37: Reduced runtime of lag chillers, extending life of chillers, pumps | L37: 0 | N37: $/Year
B38: Allowing additional cooling loads (GPM) to be added w/o upsizing dist. Pumps | L38: 0 | N38: $/Year
L41: Value | N41: Unit
B42: Incremental Investment for Energy Valves | L42: 290000 | N42: $
B43: Discount Rate | L43: 10 | N43: %
B44: Annual Inflation Rate on Energy Costs | L44: 3 | N44: %
B46: Investment Horizon | H46: 5 years | J46: 10 years | L46: 15 years | N46: 20 years
B47: Savings-Investment Ratio (SIR) | H47: =+Financials!G45 -> 0.3974823339 | J47: =+Financials!L45 -> 0.6835972694 | L47: =+Financials!Q45 -> 0.8895479477 | N47: =+Financials!V45 -> 1.037794951
B48: Net Present Value (NPV) | H48: =+Financials!$G$40 -> -174730.1232 | J48: =+Financials!$L$40 -> -91756.79188 | L48: =+Financials!$Q$40 -> -32031.09516 | N48: =+Financials!$V$40 -> 10960.53592
L50: Value | N50: Unit
B51: Annual Carbon Dioxide Avoided | L51: =L33/L12*1.555 -> 257783.98 | N51: pounds
B52: Number of Tree Seedlings Grown for 10 Years | L52: =L51/133.47 -> 1931.400165 | N52: tree seedlings
B53: Equivalent to Number of Houses' Annual Electricity Use | L53: =(L33/L12)/11880 -> 13.95433326 | N53: homes
B56: Copyright by BELIMO Aircontrols (USA), Inc., Danbury, CT, 2014-2017. This is an estimating tool. Results are dependent on the accuracy of input values and specific plant details. For more accurate results, additional plant data and complex modeling software is necessary. In order to better analyze an existing plant Belimo recommends installing 3 Energy Valves at strategic locations in order to obtain actual measured data.
B60: V.2021.1.02

Sheet Energy
B5: Operating Hours / Day | D5: =Home!L15 -> 12 | E5: hours | G5: Editable Field
B6: Operating Days / Week | D6: =Home!L16 -> 5 | E6: days | G6: Label
B7: Operating Weeks/Year | D7: 52 | E7: weeks
B8: Annual Operating Hours | D8: =(D5*D6)*D7*G35 -> 2748.29882 | E8: hours | F8: (adjusted for climate region)
B10: Point | C10: Bin | D10: Load | E10: % of Operating Time | F10: Operating Hours | G10: Tons
B11: A | C11: Design | D11: 1 | E11: 0.05 | F11: =$D$8*E11 -> 137.414941 | G11: =D11*Home!$L$13 -> 1791
B12: B | C12: Peak | D12: 0.8 | E12: 0.4 | F12: =$D$8*E12 -> 1099.319528 | G12: =D12*Home!$L$13 -> 1432.8
B13: C | C13: Mid | D13: 0.6 | E13: 0.3 | F13: =$D$8*E13 -> 824.4896461 | G13: =D13*Home!$L$13 -> 1074.6
B14: D | C14: Partial | D14: 0.4 | E14: 0.15 | F14: =$D$8*E14 -> 412.2448231 | G14: =D14*Home!$L$13 -> 716.4
B15: E | C15: Low | D15: 0.2 | E15: 0.1 | F15: 274.829882 | G15: =D15*Home!$L$13 -> 358.2
B16: F | C16: Min | D16: 0.1 | E16: =1-SUM(E11:E15) -> 0 | F16: =$D$8*E16 -> 0 | G16: =D16*Home!$L$13 -> 179.1
F17: =SUM(F11:F16) -> 2748.29882
E20: Cooling Degree Days | F20: Humidity Adjustment | G20: Multiplier
B21: Climate Region
B22: North East | E22: 1034 | F22: 0.3 | G22: =E22/$E$33*(1+F22) -> 0.8808650066
B23: Central | E23: 1090 | F23: 0.3 | G23: =E23/$E$33*(1+F23) -> 0.9285714286
B24: East North Central | E24: 975 | F24: 0.3 | G24: 0.8306028834
B25: West North Central | E25: 1123 | F25: 0.15 | G25: 0.8462975098
B26: South East | E26: 2264 | F26: 0.3 | G26: 1.92870249
B27: South | E27: 2004 | F27: 0.3 | G27: 1.707208388
B28: South West | E28: 2750 | F28: 0.05 | G28: 1.892201835
B29: Mountain | E29: 1450 | F29: 0.05 | G29: 0.997706422
B30: North West | E30: 720 | F30: 0.05 | G30: 0.495412844
B31: West | E31: 1850 | F31: 0.05 | G31: 1.27293578
B32: Custom Region | E32: 800 | F32: 0.001 | G32: 0.5247706422
B33: Average US | E33: =SUM(E22:E31)/10 -> 1526 | F33: =SUM(F22:F31)/10 -> 0.185 | G33: 1.185
B35: Selected Value | G35: =VLOOKUP(Home!F9,B:G,6,FALSE) -> 0.8808650066

Sheet Chiller
L1: Editable Field
L2: Label
B5: Aggregation of Energy Consumption | F5: [kW/ton] | G5: Flow [GPM] | H5: Head [Ft] | I5: Power [kW] | J5: Ratio
B6: KW1 Compressor | F6: =Home!L17 -> 0.6 | I6: =Home!$L$13*F6 -> 1074.6 | J6: =I6/$I$12 -> 0.8498321018
B7: =IF(Home!N9=$L$11,"KW2 Constant Speed Primary Pumps (each)","") -> KW2 Constant Speed Primary Pumps (each) | G7: =IF(Home!$N$9=$L$11,Home!L13*12000/(Home!L14*500*Home!L21),0) -> 1535.142857 | H7: 26 | I7: =0.746 * G7*H7/(3960*Home!$L$20/100) -> 11.56784416 | J7: =I7/$I$12 -> 0.009148264761
B8: =IF(Home!J9=$M$11,"KW3 Condenser Pumps (each)","") -> KW3 Condenser Pumps (each) | G8: =IF(Home!J9=M$11,3*Home!L13/Home!L14,"-") -> 2686.5 | H8: 45 | I8: =IF(Home!J9=$M$11,G8*H8/(3960*Home!$L$20/100)*0.746,0) -> 35.03722028 | J8: 0.02770868654
B9: =IF(Home!J9=$M$11,"KW4 Cooling Tower Fans (all)","") -> KW4 Cooling Tower Fans (all) | F9: 0.08 | I9: =IF(Home!$J$9=$M$11,Home!$L$13*F9,0) -> 143.28 | J9: 0.1133109469
B10: KW5 Chiller Controls | F10: 0 | I10: =Home!$L$13*F10 -> 0 | J10: 0 | L10: Chiller Plant Piping | M10: Chiller Cooling
B11: KW6 Transmission Oil Pump and Heater | F11: 0 | I11: =Home!$L$13*F11 -> 0 | J11: 0 | L11: Primary/Secondary | M11: Water Cooled
B12: Total Chiller Plant Energy Consumption | F12: =+$F$6+$F$10+$F$11+IF(Home!N9=$L$11,$F$7,0)+IF(Home!J9=$M$11,$F$8+$F$9,0) -> 0.68 | I12: =SUM(I6:I11) -> 1264.485064 | J12: =F12/$F$12 -> 1 | L12: Variable Primary | M12: Air Cooled
B14: Chiller Plant Design Primary loop Delta T | E14: =Home!L21 -> 14 | N14: Actual Delta T Energy Usage | O14: Actual % | P14: Future Delta T Energy Usage | Q14: Future %
B15: Design Chiller Primary loop GPM= | E15: =G7*Home!L14 -> 3070.285714 | M15: Chiller | N15: =VLOOKUP(Home!$L$22,Home!$B$26:$K$31,7)*$J6 -> 29114.5364 | O15: =+N15/$N$23*100 -> 95.3909245 | P15: =VLOOKUP(Home!$L$23,Home!$B$26:$K$31,7)*$J6 -> 16207.34676 | Q15: =+P15/$N$23*100 -> 53.10178292
M16: =CONCATENATE("-",$M$15,"-",B6) -> -Chiller-KW1 Compressor | N16: =+$N$15*$J6 -> 24742.46766 | O16: 81.06626986 | P16: =+$P$15*$J6 -> 13773.52356 | Q16: =+P16/$P$23*100 -> 79.36989484
B17: Chiller Energy Usage at Delta T [F]: | F17: =+Pump!F19 -> 10 | M17: =IF(Home!$N$9=$L$11,CONCATENATE("-",$M$15,"-",B7),"") -> -Chiller-KW2 Constant Speed Primary Pumps (each) | N17: =+$N$15*IF(Home!$N$9=$L$11,$J7,0) -> 266.3474874 | O17: 0.8726614332 | P17: =+$P$15*IF(Home!$N$9=$L$11,$J7,0) -> 148.2690993 | Q17: 0.8544003109
B18: Load [%] | C18: Time [%] | D18: Time [h/yr] | E18: Flow [GPM] | F18: Tons | G18: Chillers On | H18: Power [kW] | K18: LWT Plant | M18: =IF(Home!$J$9=$M$11,CONCATENATE("-",$M$15,"-",B8),"") -> -Chiller-KW3 Condenser Pumps (each) | N18: =+$N$15*IF(Home!$J$9=$M$11,$J8,0) -> 806.7255627 | O18: 2.643157225 | P18: =+$P$15*IF(Home!$J$9=$M$11,$J8,0) -> 449.0842911 | Q18: 2.587847096
B19: =Energy!$D$11 -> 1 | C19: =+Energy!$E$11*100 -> 5 | D19: =+Energy!$F$17*C19*0.01 -> 137.414941 | E19: =+Pump!E21 -> 3070.285714 | F19: =IF(+E19*$E$14/24>(Home!$L$13), Home!$L$13,(+E19*$E$14/24)) -> 1791 | G19: =ROUNDUP(+IF(E19/(Pump!$E$8/Home!$L$14)>Home!$L$14,Home!$L$14,E19/(Pump!$E$8/Home!$L$14)),0) -> 2 | H19: =G19*($I$7+$I$8)+($F$9)*F19+($F$10+$F$11)*G19 -> 236.4901289 | I19: Power Costs | J19: =J22*Home!$L$12 -> 96052.45021 | K19: =IF(E19>G19*Chiller!$G$7,"LWT Loss","Normal") -> Normal | M19: =IF(Home!$J$9=$M$11,CONCATENATE("-",$M$15,"-",B9),"") -> -Chiller-KW4 Cooling Tower Fans (all) | N19: =+$N$15*IF(Home!$J$9=$M$11,J9,0) -> 3298.995688 | O19: 10.80883598 | P19: =+$P$15*IF(Home!$J$9=$M$11,J9,0) -> 1836.469809 | Q19: 10.58265264
B20: =Energy!$D$12 -> 0.8 | C20: =+Energy!$E$12*100 -> 40 | D20: =+Energy!$F$17*C20*0.01 -> 1099.319528 | E20: =+Pump!E22 -> 3070.285714 | F20: =IF(+E20*$E$14/24>(Home!$L$13), Home!$L$13,(+E20*$E$14/24)) -> 1791 | G20: =ROUNDUP(+IF(E20/(Pump!$E$8/Home!$L$14)>Home!$L$14,Home!$L$14,E20/(Pump!$E$8/Home!$L$14)),0) -> 2 | H20: =G20*($I$7+$I$8)+$F$9*F20+($F$10+$F$11)*G20 -> 236.4901289 | I20: Avg Tonage | J20: =+((F19*D19)+(F20*D20)+(F21*D21)+(F22*D22)+(F23*D23)+(F24*D24))/Energy!$F$17 -> 1461.456 | K20: =IF(E20>G20*Chiller!$G$7,"LWT Loss","Normal") -> Normal | M20: =CONCATENATE("-",$M$15,"-",B10) -> -Chiller-KW5 Chiller Controls | N20: =+$N$15*J10 -> 0 | O20: 0 | P20: =+$P$15*J10 -> 0 | Q20: 0
B21: =Energy!$D$13 -> 0.6 | C21: =+Energy!$E$13*100 -> 30 | D21: =+Energy!$F$17*C21*0.01 -> 824.4896461 | E21: =+Pump!E23 -> 2579.04 | F21: =IF(+E21*$E$14/24>(Home!$L$13), Home!$L$13,(+E21*$E$14/24)) -> 1504.44 | G21: =ROUNDUP(+IF(E21/(Pump!$E$8/Home!$L$14)>Home!$L$14,Home!$L$14,E21/(Pump!$E$8/Home!$L$14)),0) -> 2 | H21: =G21*($I$7+$I$8)+$F$9*F21+($F$10+$F$11)*G21 -> 213.5653289 | I21: Avg. Power [kW] | J21: =AVERAGE(H19:H24) -> 173.1951074 | K21: =IF(E21>G21*Chiller!$G$7,"LWT Loss","Normal") -> Normal | M21: =CONCATENATE("-",$M$15,"-",B11) -> -Chiller-KW6 Transmission Oil Pump and Heater | N21: =+$N$15*J11 -> 0 | O21: 0 | P21: =+$P$15*J11 -> 0 | Q21: 0
B22: =Energy!$D$14 -> 0.4 | C22: =+Energy!$E$14*100 -> 15 | D22: =+Energy!$F$17*C22*0.01 -> 412.2448231 | E22: =+Pump!E24 -> 1719.36 | F22: =IF(+E22*$E$14/24>(Home!$L$13), Home!$L$13,(+E22*$E$14/24)) -> 1002.96 | G22: =ROUNDUP(+IF(E22/(Pump!$E$8/Home!$L$14)>Home!$L$14,Home!$L$14,E22/(Pump!$E$8/Home!$L$14)),0) -> 2 | H22: =G22*($I$7+$I$8)+$F$9*F22+($F$10+$F$11)*G22 -> 173.4469289 | I22: Energy [kWh/yr] | J22: =SUMPRODUCT(D19:D24,H19:H24) -> 564682.2469 | K22: =IF(E22>G22*Chiller!$G$7,"LWT Loss","Normal") -> Normal | M22: Pump | N22: =VLOOKUP(Home!$L$22,Home!$B$26:$K$31,5) -> 1406.749091 | O22: 4.609075497 | P22: =VLOOKUP(Home!$L$23,Home!$B$26:$K$31,5) -> 1146.24 | Q22: 6.605205112
B23: =Energy!$D$15 -> 0.2 | C23: =+Energy!$E$15*100 -> 10 | D23: =+Energy!$F$17*C23*0.01 -> 274.829882 | E23: =+Pump!E25 -> 921.0857143 | F23: =IF(+E23*$E$14/24>(Home!$L$13), Home!$L$13,(+E23*$E$14/24)) -> 537.3 | G23: =ROUNDUP(+IF(E23/(Pump!$E$8/Home!$L$14)>Home!$L$14,Home!$L$14,E23/(Pump!$E$8/Home!$L$14)),0) -> 1 | H23: =G23*($I$7+$I$8)+$F$9*F23+($F$10+$F$11)*G23 -> 89.58906444 | N23: =SUM(N16:N22) -> 30521.28549 | O23: 100 | P23: =SUM(P16:P22) -> 17353.58676 | Q23: 100
B24: =Energy!$D$16 -> 0.1 | C24: =+Energy!$E$16*100 -> 0 | D24: =+Energy!$F$17*C24*0.01 -> 0 | E24: =+Pump!E26 -> 921.0857143 | F24: =IF(+E24*$E$14/24>(Home!$L$13), Home!$L$13,(+E24*$E$14/24)) -> 537.3 | G24: =ROUNDUP(+IF(E24/(Pump!$E$8/Home!$L$14)>Home!$L$14,Home!$L$14,E24/(Pump!$E$8/Home!$L$14)),0) -> 1 | H24: 89.58906444
B26: Chiller Energy Usage at Delta T [F]: | F26: =+Pump!F28 -> 11
B27: Load [%] | C27: Time [%] | D27: Time [h] | E27: Flow [GPM] | F27: Tons | G27: =+$G$18 -> Chillers On | H27: Power [kW]
B28: =Energy!$D$11 -> 1 | C28: =+Energy!$E$11*100 -> 5 | D28: =+Energy!$F$17*C28*0.01 -> 137.414941 | E28: =+Pump!E30 -> 3070.285714 | F28: =IF(+E28*$E$14/24>(Home!$L$13), Home!$L$13,(+E28*$E$14/24)) -> 1791 | G28: =ROUNDUP(+IF(E28/(Pump!$E$8/Home!$L$14)>Home!$L$14,Home!$L$14,E28/(Pump!$E$8/Home!$L$14)),0) -> 2 | H28: =G28*($I$7+$I$8)+$F$9*F28+($F$10+$F$11)*G28 -> 236.4901289 | I28: =+I19 -> Power Costs | J28: =J31*Home!$L$12 -> 94006.4747 | K28: =IF(E28>G28*Chiller!$G$7,"LWT Loss","Normal") -> Normal
B29: =Energy!$D$12 -> 0.8 | C29: =+Energy!$E$12*100 -> 40 | D29: =+Energy!$F$17*C29*0.01 -> 1099.319528 | E29: =+Pump!E31 -> 3070.285714 | F29: =IF(+E29*$E$14/24>(Home!$L$13), Home!$L$13,(+E29*$E$14/24)) -> 1791 | G29: =ROUNDUP(+IF(E29/(Pump!$E$8/Home!$L$14)>Home!$L$14,Home!$L$14,E29/(Pump!$E$8/Home!$L$14)),0) -> 2 | H29: =G29*($I$7+$I$8)+$F$9*F29+($F$10+$F$11)*G29 -> 236.4901289 | I29: =+I20 -> Avg Tonage | J29: =+((F28*D28)+(F29*D29)+(F30*D30)+(F31*D31)+(F32*D32)+(F33*D33))/Energy!$F$17 -> 1406.749091 | K29: =IF(E29>G29*Chiller!$G$7,"LWT Loss","Normal") -> Normal
B30: =Energy!$D$13 -> 0.6 | C30: =+Energy!$E$13*100 -> 30 | D30: =+Energy!$F$17*C30*0.01 -> 824.4896461 | E30: =+Pump!E32 -> 2344.581818 | F30: =IF(+E30*$E$14/24>(Home!$L$13), Home!$L$13,(+E30*$E$14/24)) -> 1367.672727 | G30: =ROUNDUP(+IF(E30/(Pump!$E$8/Home!$L$14)>Home!$L$14,Home!$L$14,E30/(Pump!$E$8/Home!$L$14)),0) -> 2 | H30: =G30*($I$7+$I$8)+$F$9*F30+($F$10+$F$11)*G30 -> 202.6239471 | I30: =I21 -> Avg. Power [kW] | J30: =AVERAGE(H28:H33) -> 170.1558347 | K30: =IF(E30>G30*Chiller!$G$7,"LWT Loss","Normal") -> Normal
B31: =Energy!$D$14 -> 0.4 | C31: =+Energy!$E$14*100 -> 15 | D31: =+Energy!$F$17*C31*0.01 -> 412.2448231 | E31: =+Pump!E33 -> 1563.054545 | F31: =IF(+E31*$E$14/24>(Home!$L$13), Home!$L$13,(+E31*$E$14/24)) -> 911.7818182 | G31: =ROUNDUP(+IF(E31/(Pump!$E$8/Home!$L$14)>Home!$L$14,Home!$L$14,E31/(Pump!$E$8/Home!$L$14)),0) -> 2 | H31: =G31*($I$7+$I$8)+$F$9*F31+($F$10+$F$11)*G31 -> 166.1526743 | I31: =+I22 -> Energy [kWh/yr] | J31: =SUMPRODUCT(D28:D33,H28:H33) -> 552654.1722 | K31: =IF(E31>G31*Chiller!$G$7,"LWT Loss","Normal") -> Normal
B32: =Energy!$D$15 -> 0.2 | C32: =+Energy!$E$15*100 -> 10 | D32: =+Energy!$F$17*C32*0.01 -> 274.829882 | E32: =+Pump!E34 -> 921.0857143 | F32: =IF(+E32*$E$14/24>(Home!$L$13), Home!$L$13,(+E32*$E$14/24)) -> 537.3 | G32: =ROUNDUP(+IF(E32/(Pump!$E$8/Home!$L$14)>Home!$L$14,Home!$L$14,E32/(Pump!$E$8/Home!$L$14)),0) -> 1 | H32: =G32*($I$7+$I$8)+$F$9*F32+($F$10+$F$11)*G32 -> 89.58906444
B33: =Energy!$D$16 -> 0.1 | C33: =+Energy!$E$16*100 -> 0 | D33: =+Energy!$F$17*C33*0.01 -> 0 | E33: =+Pump!E35 -> 921.0857143 | F33: =IF(+E33*$E$14/24>(Home!$L$13), Home!$L$13,(+E33*$E$14/24)) -> 537.3 | G33: =ROUNDUP(+IF(E33/(Pump!$E$8/Home!$L$14)>Home!$L$14,Home!$L$14,E33/(Pump!$E$8/Home!$L$14)),0) -> 1 | H33: 89.58906444
B35: Chiller Energy Usage at Delta T [F]: | F35: =+Pump!F37 -> 12
B36: Load [%] | C36: Time [%] | D36: Time [h] | E36: Flow [GPM] | F36: Tons | G36: =+$G$18 -> Chillers On | H36: Power [kW]
B37: =Energy!$D$11 -> 1 | C37: =+Energy!$E$11*100 -> 5 | D37: =+Energy!$F$17*C37*0.01 -> 137.414941 | E37: =+Pump!E39 -> 3070.285714 | F37: =IF(+E37*$E$14/24>(Home!$L$13), Home!$L$13,(+E37*$E$14/24)) -> 1791 | G37: =ROUNDUP(+IF(E37/(Pump!$E$8/Home!$L$14)>Home!$L$14,Home!$L$14,E37/(Pump!$E$8/Home!$L$14)),0) -> 2 | H37: =G37*($I$7+$I$8)+$F$9*F37+($F$10+$F$11)*G37 -> 236.4901289 | I37: =+I19 -> Power Costs | J37: =J40*Home!$L$12 -> 87247.24634 | K37: =IF(E37>G37*Chiller!$G$7,"LWT Loss","Normal") -> Normal
B38: =Energy!$D$12 -> 0.8 | C38: =+Energy!$E$12*100 -> 40 | D38: =+Energy!$F$17*C38*0.01 -> 1099.319528 | E38: =+Pump!E40 -> 2865.6 | F38: =IF(+E38*$E$14/24>(Home!$L$13), Home!$L$13,(+E38*$E$14/24)) -> 1671.6 | G38: =ROUNDUP(+IF(E38/(Pump!$E$8/Home!$L$14)>Home!$L$14,Home!$L$14,E38/(Pump!$E$8/Home!$L$14)),0) -> 2 | H38: =G38*($I$7+$I$8)+$F$9*F38+($F$10+$F$11)*G38 -> 226.9381289 | I38: =+I20 -> Avg Tonage | J38: =+((F37*D37)+(F38*D38)+(F39*D39)+(F40*D40)+(F41*D41)+(F42*D42))/Energy!$F$17 -> 1313.4 | K38: =IF(E38>G38*Chiller!$G$7,"LWT Loss","Normal") -> Normal
B39: =Energy!$D$13 -> 0.6 | C39: =+Energy!$E$13*100 -> 30 | D39: =+Energy!$F$17*C39*0.01 -> 824.4896461 | E39: =+Pump!E41 -> 2149.2 | F39: =IF(+E39*$E$14/24>(Home!$L$13), Home!$L$13,(+E39*$E$14/24)) -> 1253.7 | G39: =ROUNDUP(+IF(E39/(Pump!$E$8/Home!$L$14)>Home!$L$14,Home!$L$14,E39/(Pump!$E$8/Home!$L$14)),0) -> 2 | H39: =G39*($I$7+$I$8)+$F$9*F39+($F$10+$F$11)*G39 -> 193.5061289 | I39: =I21 -> Avg. Power [kW] | J39: =AVERAGE(H37:H42) -> 158.2635967 | K39: =IF(E39>G39*Chiller!$G$7,"LWT Loss","Normal") -> Normal
B40: =Energy!$D$14 -> 0.4 | C40: =+Energy!$E$14*100 -> 15 | D40: =+Energy!$F$17*C40*0.01 -> 412.2448231 | E40: =+Pump!E42 -> 1432.8 | F40: =IF(+E40*$E$14/24>(Home!$L$13), Home!$L$13,(+E40*$E$14/24)) -> 835.8 | G40: =ROUNDUP(+IF(E40/(Pump!$E$8/Home!$L$14)>Home!$L$14,Home!$L$14,E40/(Pump!$E$8/Home!$L$14)),0) -> 1 | H40: =G40*($I$7+$I$8)+$F$9*F40+($F$10+$F$11)*G40 -> 113.4690644 | I40: =+I22 -> Energy [kWh/yr] | J40: =SUMPRODUCT(D37:D42,H37:H42) -> 512917.38 | K40: =IF(E40>G40*Chiller!$G$7,"LWT Loss","Normal") -> Normal
B41: =Energy!$D$15 -> 0.2 | C41: =+Energy!$E$15*100 -> 10 | D41: =+Energy!$F$17*C41*0.01 -> 274.829882 | E41: =+Pump!E43 -> 921.0857143 | F41: =IF(+E41*$E$14/24>(Home!$L$13), Home!$L$13,(+E41*$E$14/24)) -> 537.3 | G41: =ROUNDUP(+IF(E41/(Pump!$E$8/Home!$L$14)>Home!$L$14,Home!$L$14,E41/(Pump!$E$8/Home!$L$14)),0) -> 1 | H41: =G41*($I$7+$I$8)+$F$9*F41+($F$10+$F$11)*G41 -> 89.58906444
B42: =Energy!$D$16 -> 0.1 | C42: =+Energy!$E$16*100 -> 0 | D42: =+Energy!$F$17*C42*0.01 -> 0 | E42: =+Pump!E44 -> 921.0857143 | F42: =IF(+E42*$E$14/24>(Home!$L$13), Home!$L$13,(+E42*$E$14/24)) -> 537.3 | G42: =ROUNDUP(+IF(E42/(Pump!$E$8/Home!$L$14)>Home!$L$14,Home!$L$14,E42/(Pump!$E$8/Home!$L$14)),0) -> 1 | H42: 89.58906444
B44: Chiller Energy Usage at Delta T [F]: | F44: =+Pump!F46 -> 13
B45: Load [%] | C45: Time [%] | D45: Time [h] | E45: Flow [GPM] | F45: Tons | G45: =+$G$18 -> Chillers On | H45: Power [kW]
B46: =Energy!$D$11 -> 1 | C46: =+Energy!$E$11*100 -> 5 | D46: =+Energy!$F$17*C46*0.01 -> 137.414941 | E46: =+Pump!E48 -> 3070.285714 | F46: =IF(+E46*$E$14/24>(Home!$L$13), Home!$L$13,(+E46*$E$14/24)) -> 1791 | G46: =ROUNDUP(+IF(E46/(Pump!$E$8/Home!$L$14)>Home!$L$14,Home!$L$14,E46/(Pump!$E$8/Home!$L$14)),0) -> 2 | H46: =G46*($I$7+$I$8)+$F$9*F46+($F$10+$F$11)*G46 -> 236.4901289 | I46: =+I19 -> Power Costs | J46: =J49*Home!$L$12 -> 83881.00458 | K46: =IF(E46>G46*Chiller!$G$7,"LWT Loss","Normal") -> Normal
B47: =Energy!$D$12 -> 0.8 | C47: =+Energy!$E$12*100 -> 40 | D47: =+Energy!$F$17*C47*0.01 -> 1099.319528 | E47: =+Pump!E49 -> 2645.169231 | F47: =IF(+E47*$E$14/24>(Home!$L$13), Home!$L$13,(+E47*$E$14/24)) -> 1543.015385 | G47: =ROUNDUP(+IF(E47/(Pump!$E$8/Home!$L$14)>Home!$L$14,Home!$L$14,E47/(Pump!$E$8/Home!$L$14)),0) -> 2 | H47: =G47*($I$7+$I$8)+$F$9*F47+($F$10+$F$11)*G47 -> 216.6513596 | I47: =+I20 -> Avg Tonage | J47: =+((F46*D46)+(F47*D47)+(F48*D48)+(F49*D49)+(F50*D50)+(F51*D51))/Energy!$F$17 -> 1223.390769 | K47: =IF(E47>G47*Chiller!$G$7,"LWT Loss","Normal") -> Normal
B48: =Energy!$D$13 -> 0.6 | C48: =+Energy!$E$13*100 -> 30 | D48: =+Energy!$F$17*C48*0.01 -> 824.4896461 | E48: =+Pump!E50 -> 1983.876923 | F48: =IF(+E48*$E$14/24>(Home!$L$13), Home!$L$13,(+E48*$E$14/24)) -> 1157.261538 | G48: =ROUNDUP(+IF(E48/(Pump!$E$8/Home!$L$14)>Home!$L$14,Home!$L$14,E48/(Pump!$E$8/Home!$L$14)),0) -> 2 | H48: =G48*($I$7+$I$8)+$F$9*F48+($F$10+$F$11)*G48 -> 185.7910519 | I48: =I30 -> Avg. Power [kW] | J48: =AVERAGE(H46:H51) -> 154.4060582 | K48: =IF(E48>G48*Chiller!$G$7,"LWT Loss","Normal") -> Normal
B49: =Energy!$D$14 -> 0.4 | C49: =+Energy!$E$14*100 -> 15 | D49: =+Energy!$F$17*C49*0.01 -> 412.2448231 | E49: =+Pump!E51 -> 1322.584615 | F49: =IF(+E49*$E$14/24>(Home!$L$13), Home!$L$13,(+E49*$E$14/24)) -> 771.5076923 | G49: =ROUNDUP(+IF(E49/(Pump!$E$8/Home!$L$14)>Home!$L$14,Home!$L$14,E49/(Pump!$E$8/Home!$L$14)),0) -> 1 | H49: =G49*($I$7+$I$8)+$F$9*F49+($F$10+$F$11)*G49 -> 108.3256798 | I49: =+I22 -> Energy [kWh/yr] | J49: =SUMPRODUCT(D46:D51,H46:H51) -> 493127.599 | K49: =IF(E49>G49*Chiller!$G$7,"LWT Loss","Normal") -> Normal
B50: =Energy!$D$15 -> 0.2 | C50: =+Energy!$E$15*100 -> 10 | D50: =+Energy!$F$17*C50*0.01 -> 274.829882 | E50: =+Pump!E52 -> 921.0857143 | F50: =IF(+E50*$E$14/24>(Home!$L$13), Home!$L$13,(+E50*$E$14/24)) -> 537.3 | G50: =ROUNDUP(+IF(E50/(Pump!$E$8/Home!$L$14)>Home!$L$14,Home!$L$14,E50/(Pump!$E$8/Home!$L$14)),0) -> 1 | H50: =G50*($I$7+$I$8)+$F$9*F50+($F$10+$F$11)*G50 -> 89.58906444
B51: =Energy!$D$16 -> 0.1 | C51: =+Energy!$E$16*100 -> 0 | D51: =+Energy!$F$17*C51*0.01 -> 0 | E51: =+Pump!E53 -> 921.0857143 | F51: =IF(+E51*$E$14/24>(Home!$L$13), Home!$L$13,(+E51*$E$14/24)) -> 537.3 | G51: =ROUNDUP(+IF(E51/(Pump!$E$8/Home!$L$14)>Home!$L$14,Home!$L$14,E51/(Pump!$E$8/Home!$L$14)),0) -> 1 | H51: 89.58906444
B53: Chiller Energy Usage at Delta T [F]: | F53: =+Pump!F55 -> 14
B54: Load [%] | C54: Time [%] | D54: Time [h] | E54: Flow [GPM] | F54: Tons | G54: =+$G$18 -> Chillers On | H54: Power [kW]
B55: =Energy!$D$11 -> 1 | C55: =+Energy!$E$11*100 -> 5 | D55: =+Energy!$F$17*C55*0.01 -> 137.414941 | E55: =+Pump!E57 -> 3070.285714 | F55: =IF(+E55*$E$14/24>(Home!$L$13), Home!$L$13,(+E55*$E$14/24)) -> 1791 | G55: =ROUNDUP(+IF(E55/(Pump!$E$8/Home!$L$14)>Home!$L$14,Home!$L$14,E55/(Pump!$E$8/Home!$L$14)),0) -> 2 | H55: =G55*($I$7+$I$8)+$F$9*F55+($F$10+$F$11)*G55 -> 236.4901289 | I55: =+I19 -> Power Costs | J55: =J58*Home!$L$12 -> 80995.65451 | K55: =IF(E55>G55*Chiller!$G$7,"LWT Loss","Normal") -> Normal
B56: =Energy!$D$12 -> 0.8 | C56: =+Energy!$E$12*100 -> 40 | D56: =+Energy!$F$17*C56*0.01 -> 1099.319528 | E56: =+Pump!E58 -> 2456.228571 | F56: =IF(+E56*$E$14/24>(Home!$L$13), Home!$L$13,(+E56*$E$14/24)) -> 1432.8 | G56: =ROUNDUP(+IF(E56/(Pump!$E$8/Home!$L$14)>Home!$L$14,Home!$L$14,E56/(Pump!$E$8/Home!$L$14)),0) -> 2 | H56: =G56*($I$7+$I$8)+$F$9*F56+($F$10+$F$11)*G56 -> 207.8341289 | I56: =+I20 -> Avg Tonage | J56: =+((F55*D55)+(F56*D56)+(F57*D57)+(F58*D58)+(F59*D59)+(F60*D60))/Energy!$F$17 -> 1146.24 | K56: =IF(E56>G56*Chiller!$G$7,"LWT Loss","Normal") -> Normal
B57: =Energy!$D$13 -> 0.6 | C57: =+Energy!$E$13*100 -> 30 | D57: =+Energy!$F$17*C57*0.01 -> 824.4896461 | E57: =+Pump!E59 -> 1842.171429 | F57: =IF(+E57*$E$14/24>(Home!$L$13), Home!$L$13,(+E57*$E$14/24)) -> 1074.6 | G57: =ROUNDUP(+IF(E57/(Pump!$E$8/Home!$L$14)>Home!$L$14,Home!$L$14,E57/(Pump!$E$8/Home!$L$14)),0) -> 2 | H57: =G57*($I$7+$I$8)+$F$9*F57+($F$10+$F$11)*G57 -> 179.1781289 | I57: =+I21 -> Avg. Power [kW] | J57: =AVERAGE(H55:H60) -> 151.0995967 | K57: =IF(E57>G57*Chiller!$G$7,"LWT Loss","Normal") -> Normal
B58: =Energy!$D$14 -> 0.4 | C58: =+Energy!$E$14*100 -> 15 | D58: =+Energy!$F$17*C58*0.01 -> 412.2448231 | E58: =+Pump!E60 -> 1228.114286 | F58: =IF(+E58*$E$14/24>(Home!$L$13), Home!$L$13,(+E58*$E$14/24)) -> 716.4 | G58: =ROUNDUP(+IF(E58/(Pump!$E$8/Home!$L$14)>Home!$L$14,Home!$L$14,E58/(Pump!$E$8/Home!$L$14)),0) -> 1 | H58: =G58*($I$7+$I$8)+$F$9*F58+($F$10+$F$11)*G58 -> 103.9170644 | I58: =+I22 -> Energy [kWh/yr] | J58: =SUMPRODUCT(D55:D60,H55:H60) -> 476164.9295 | K58: =IF(E58>G58*Chiller!$G$7,"LWT Loss","Normal") -> Normal
B59: =Energy!$D$15 -> 0.2 | C59: =+Energy!$E$15*100 -> 10 | D59: =+Energy!$F$17*C59*0.01 -> 274.829882 | E59: =+Pump!E61 -> 921.0857143 | F59: =IF(+E59*$E$14/24>(Home!$L$13), Home!$L$13,(+E59*$E$14/24)) -> 537.3 | G59: =ROUNDUP(+IF(E59/(Pump!$E$8/Home!$L$14)>Home!$L$14,Home!$L$14,E59/(Pump!$E$8/Home!$L$14)),0) -> 1 | H59: =G59*($I$7+$I$8)+$F$9*F59+($F$10+$F$11)*G59 -> 89.58906444
B60: =Energy!$D$16 -> 0.1 | C60: =+Energy!$E$16*100 -> 0 | D60: =+Energy!$F$17*C60*0.01 -> 0 | E60: =+Pump!E62 -> 921.0857143 | F60: =IF(+E60*$E$14/24>(Home!$L$13), Home!$L$13,(+E60*$E$14/24)) -> 537.3 | G60: =ROUNDUP(+IF(E60/(Pump!$E$8/Home!$L$14)>Home!$L$14,Home!$L$14,E60/(Pump!$E$8/Home!$L$14)),0) -> 1 | H60: 89.58906444
B62: Chiller Energy Usage at Delta T [F]: | F62: =+Pump!F64 -> 15
B63: Load [%] | C63: Time [%] | D63: Time [h] | E63: Flow [GPM] | F63: Tons | G63: =+$G$18 -> Chillers On | H63: Power [kW]
B64: =Energy!$D$11 -> 1 | C64: =+Energy!$E$11*100 -> 5 | D64: =+Energy!$F$17*C64*0.01 -> 137.414941 | E64: =+Pump!E66 -> 2865.6 | F64: =IF(+E64*$E$14/24>(Home!$L$13), Home!$L$13,(+E64*$E$14/24)) -> 1671.6 | G64: =ROUNDUP(+IF(E64/(Pump!$E$8/Home!$L$14)>Home!$L$14,Home!$L$14,E64/(Pump!$E$8/Home!$L$14)),0) -> 2 | H64: =G64*($I$7+$I$8)+$F$9*F64+($F$10+$F$11)*G64 -> 226.9381289 | I64: =+I19 -> Power Costs | J64: =J67*Home!$L$12 -> 78271.74665 | K64: =IF(E64>G64*Chiller!$G$7,"LWT Loss","Normal") -> Normal
B65: =Energy!$D$12 -> 0.8 | C65: =+Energy!$E$12*100 -> 40 | D65: =+Energy!$F$17*C65*0.01 -> 1099.319528 | E65: =+Pump!E67 -> 2292.48 | F65: =IF(+E65*$E$14/24>(Home!$L$13), Home!$L$13,(+E65*$E$14/24)) -> 1337.28 | G65: =ROUNDUP(+IF(E65/(Pump!$E$8/Home!$L$14)>Home!$L$14,Home!$L$14,E65/(Pump!$E$8/Home!$L$14)),0) -> 2 | H65: =G65*($I$7+$I$8)+$F$9*F65+($F$10+$F$11)*G65 -> 200.1925289 | I65: =+I20 -> Avg Tonage | J65: =+((F64*D64)+(F65*D65)+(F66*D66)+(F67*D67)+(F68*D68)+(F69*D69))/Energy!$F$17 -> 1073.406 | K65: =IF(E65>G65*Chiller!$G$7,"LWT Loss","Normal") -> Normal
B66: =Energy!$D$13 -> 0.6 | C66: =+Energy!$E$13*100 -> 30 | D66: =+Energy!$F$17*C66*0.01 -> 824.4896461 | E66: =+Pump!E68 -> 1719.36 | F66: =IF(+E66*$E$14/24>(Home!$L$13), Home!$L$13,(+E66*$E$14/24)) -> 1002.96 | G66: =ROUNDUP(+IF(E66/(Pump!$E$8/Home!$L$14)>Home!$L$14,Home!$L$14,E66/(Pump!$E$8/Home!$L$14)),0) -> 2 | H66: =G66*($I$7+$I$8)+$F$9*F66+($F$10+$F$11)*G66 -> 173.4469289 | I66: =+I21 -> Avg. Power [kW] | J66: =AVERAGE(H64:H69) -> 146.6419967 | K66: =IF(E66>G66*Chiller!$G$7,"LWT Loss","Normal") -> Normal
B67: =Energy!$D$14 -> 0.4 | C67: =+Energy!$E$14*100 -> 15 | D67: =+Energy!$F$17*C67*0.01 -> 412.2448231 | E67: =+Pump!E69 -> 1146.24 | F67: =IF(+E67*$E$14/24>(Home!$L$13), Home!$L$13,(+E67*$E$14/24)) -> 668.64 | G67: =ROUNDUP(+IF(E67/(Pump!$E$8/Home!$L$14)>Home!$L$14,Home!$L$14,E67/(Pump!$E$8/Home!$L$14)),0) -> 1 | H67: =G67*($I$7+$I$8)+$F$9*F67+($F$10+$F$11)*G67 -> 100.0962644 | I67: =+I22 -> Energy [kWh/yr] | J67: =SUMPRODUCT(D64:D69,H64:H69) -> 460151.3618 | K67: =IF(E67>G67*Chiller!$G$7,"LWT Loss","Normal") -> Normal
B68: =Energy!$D$15 -> 0.2 | C68: =+Energy!$E$15*100 -> 10 | D68: =+Energy!$F$17*C68*0.01 -> 274.829882 | E68: =+Pump!E70 -> 921.0857143 | F68: =IF(+E68*$E$14/24>(Home!$L$13), Home!$L$13,(+E68*$E$14/24)) -> 537.3 | G68: =ROUNDUP(+IF(E68/(Pump!$E$8/Home!$L$14)>Home!$L$14,Home!$L$14,E68/(Pump!$E$8/Home!$L$14)),0) -> 1 | H68: =G68*($I$7+$I$8)+$F$9*F68+($F$10+$F$11)*G68 -> 89.58906444
B69: =Energy!$D$16 -> 0.1 | C69: =+Energy!$E$16*100 -> 0 | D69: =+Energy!$F$17*C69*0.01 -> 0 | E69: =+Pump!E71 -> 921.0857143 | F69: =IF(+E69*$E$14/24>(Home!$L$13), Home!$L$13,(+E69*$E$14/24)) -> 537.3 | G69: =ROUNDUP(+IF(E69/(Pump!$E$8/Home!$L$14)>Home!$L$14,Home!$L$14,E69/(Pump!$E$8/Home!$L$14)),0) -> 1 | H69: 89.58906444

Sheet Pump
J4: Editable Field
B5: Pump Design Factor | F5: 1 | J5: Label
B6: Design Chilled Water Distribution dT | F6: =+Home!$L$21 -> 14
B7: Load [%] | C7: Time [%] | D7: Time [h] | E7: Flow [GPM] | F7: Head [ft] | G7: Power [HP]
B8: =Energy!$D$11*100 -> 100 | C8: =+Energy!$E$11*100 -> 5 | D8: =+Energy!$F$17*C8*0.01 -> 137.414941 | E8: =+Home!$L$13*24/Home!$L$21 -> 3070.285714 | F8: =+Home!L18 -> 135 | G8: =(E8*F8)/(3960*Home!$L$20/100) -> 161.028971 | H8: Pump costs | I8: =I11*Home!$L$12 -> 19071.23387 | K8: =B8*Home!$L$13*24/$F$6/100 -> 3070.285714
B9: =Energy!$D$12*100 -> 80 | C9: =+Energy!$E$12*100 -> 40 | D9: =+Energy!$F$17*C9*0.01 -> 1099.319528 | E9: =+IF(($E$8*B9/100)<$E$17,$E$17,($E$8*B9/100)) -> 2456.228571 | F9: =IF(($F$8*(E9/$E$8)^2)<$F$15,$F$15,($F$8*(E9/$E$8)^2)) -> 86.4 | G9: =(E9*F9)/(3960*Home!$L$20/100) -> 82.44683317 | H9: Annual Gal. | I9: =SUMPRODUCT(E8:E13,D8:D13)*60 -> 324021604.1 | K9: =B9*Home!$L$13*24/$F$6/100 -> 2456.228571
B10: =Energy!$D$13*100 -> 60 | C10: =+Energy!$E$13*100 -> 30 | D10: =+Energy!$F$17*C10*0.01 -> 824.4896461 | E10: =+IF(($E$8*B10/100)<$E$17,$E$17,($E$8*B10/100)) -> 1842.171429 | F10: =IF(($F$8*(E10/$E$8)^2)<$F$15,$F$15,($F$8*(E10/$E$8)^2)) -> 48.6 | G10: =(E10*F10)/(3960*Home!$L$20/100) -> 34.78225774 | H10: Avg GPM | I10: =+I9/(60*Energy!$F$17) -> 1964.982857 | K10: =B10*Home!$L$13*24/$F$6/100 -> 1842.171429
B11: =Energy!$D$14*100 -> 40 | C11: =+Energy!$E$14*100 -> 15 | D11: =+Energy!$F$17*C11*0.01 -> 412.2448231 | E11: =+IF(($E$8*B11/100)<$E$17,$E$17,($E$8*B11/100)) -> 1228.114286 | F11: =IF(($F$8*(E11/$E$8)^2)<$F$15,$F$15,($F$8*(E11/$E$8)^2)) -> 30 | G11: =(E11*F11)/(3960*Home!$L$20/100) -> 14.31368631 | H11: Energy [kWh] | I11: =SUMPRODUCT(D8:D13,G8:G13)*0.746 -> 112117.777 | K11: =B11*Home!$L$13*24/$F$6/100 -> 1228.114286
B12: =Energy!$D$15*100 -> 20 | C12: =+Energy!$E$15*100 -> 10 | D12: =+Energy!$F$17*C12*0.01 -> 274.829882 | E12: =+IF(($E$8*B12/100)<$E$17,$E$17,($E$8*B12/100)) -> 921.0857143 | F12: =IF(($F$8*(E12/$E$8)^2)<$F$15,$F$15,($F$8*(E12/$E$8)^2)) -> 30 | G12: =(E12*F12)/(3960*Home!$L$20/100) -> 10.73526474 | K12: =B12*Home!$L$13*24/$F$6/100 -> 614.0571429
B13: =Energy!$D$16*100 -> 10 | C13: =+Energy!$E$16*100 -> 0 | D13: =+Energy!$F$17*C13*0.01 -> 0 | E13: 921.0857143 | F13: 30 | G13: =(E13*F13)/(3960*Home!$L$20/100) -> 10.73526474 | K13: =B13*Home!$L$13*24/$F$6/100 -> 307.0285714
B15: Minimum Pump head | D15: [ft] and Flow [GPM] | F15: 30 | G15: =E8*Home!L19/100 -> 921.0857143
E16: Min. [GPM] | F16: Head [ft] | G16: Power [HP] | H16: Power [kW]
E17: =G15 -> 921.0857143 | F17: =+F15 -> 30 | G17: =(E17*F17)/(3960*Home!L20/100) -> 10.73526474 | H17: =G17*0.746 -> 8.008507493
B19: Chilled Water Distribution Flow at Delta T [F]: | F19: =Home!B26 -> 10
B20: Load [%] | C20: Time [%] | D20: Time [h] | E20: Flow [GPM] | F20: Head [ft] | G20: Power [HP] | I20: Pump costs
B21: =Energy!$D$11*100 -> 100 | C21: =+Energy!$E$11*100 -> 5 | D21: =+Energy!$F$17*C21*0.01 -> 137.414941 | E21: =IF(Home!$L$13*B21*0.01*24/$F$19>$E$8*$F$5,$E$8*$F$5,Home!$L$13*B21*0.01*24/$F$19) -> 3070.285714 | F21: =IF(($F$8*(E21/$E$8)^2)<$F$15,$F$15,($F$8*(E21/$E$8)^2)) -> 135 | G21: =(E21*F21)/(3960*Home!$L$20/100) -> 161.028971 | H21: Pump costs | I21: =I24*Home!$L$12 -> 37110.29992
B22: =Energy!$D$12*100 -> 80 | C22: =+Energy!$E$12*100 -> 40 | D22: =+Energy!$F$17*C22*0.01 -> 1099.319528 | E22: =IF(IF(Home!$L$13*12000*B22/(100*500*$F$19)>$E$8*$F$5,$E$8*$F$5,Home!$L$13*12000*B22/(100*500*$F$19))<$E$17,$E$17,IF(Home!$L$13*12000*B22/(100*500*$F$19)>$E$8*$F$5,$E$8*$F$5,Home!$L$13*12000*B22/(100*500*$F$19))) -> 3070.285714 | F22: =IF(($F$8*(E22/$E$8)^2)<$F$15,$F$15,($F$8*(E22/$E$8)^2)) -> 135 | G22: =(E22*F22)/(3960*Home!$L$20/100) -> 161.028971 | H22: Annual Gal. | I22: =SUMPRODUCT(E21:E26,D21:D26)*60 -> 413127545.2
B23: =Energy!$D$13*100 -> 60 | C23: =+Energy!$E$13*100 -> 30 | D23: =+Energy!$F$17*C23*0.01 -> 824.4896461 | E23: =IF(IF(Home!$L$13*12000*B23/(100*500*$F$19)>$E$8*$F$5,$E$8*$F$5,Home!$L$13*12000*B23/(100*500*$F$19))<$E$17,$E$17,IF(Home!$L$13*12000*B23/(100*500*$F$19)>$E$8*$F$5,$E$8*$F$5,Home!$L$13*12000*B23/(100*500*$F$19))) -> 2579.04 | F23: =IF(($F$8*(E23/$E$8)^2)<$F$15,$F$15,($F$8*(E23/$E$8)^2)) -> 95.256 | G23: =(E23*F23)/(3960*Home!$L$20/100) -> 95.44251524 | H23: Avg GPM | I23: =+I22/(60*Energy!$F$17) -> 2505.353143
B24: =Energy!$D$14*100 -> 40 | C24: =+Energy!$E$14*100 -> 15 | D24: =+Energy!$F$17*C24*0.01 -> 412.2448231 | E24: =IF(IF(Home!$L$13*12000*B24/(100*500*$F$19)>$E$8*$F$5,$E$8*$F$5,Home!$L$13*12000*B24/(100*500*$F$19))<$E$17,$E$17,IF(Home!$L$13*12000*B24/(100*500*$F$19)>$E$8*$F$5,$E$8*$F$5,Home!$L$13*12000*B24/(100*500*$F$19))) -> 1719.36 | F24: =IF(($F$8*(E24/$E$8)^2)<$F$15,$F$15,($F$8*(E24/$E$8)^2)) -> 42.336 | G24: =(E24*F24)/(3960*Home!$L$20/100) -> 28.27926378 | H24: Energy [kWh] | I24: =SUMPRODUCT(D21:D26,G21:G26)*0.746 -> 218167.548
B25: =Energy!$D$15*100 -> 20 | C25: =+Energy!$E$15*100 -> 10 | D25: =+Energy!$F$17*C25*0.01 -> 274.829882 | E25: =IF(IF(Home!$L$13*12000*B25/(100*500*$F$19)>$E$8*$F$5,$E$8*$F$5,Home!$L$13*12000*B25/(100*500*$F$19))<$E$17,$E$17,IF(Home!$L$13*12000*B25/(100*500*$F$19)>$E$8*$F$5,$E$8*$F$5,Home!$L$13*12000*B25/(100*500*$F$19))) -> 921.0857143 | F25: =IF(($F$8*(E25/$E$8)^2)<$F$15,$F$15,($F$8*(E25/$E$8)^2)) -> 30 | G25: =(E25*F25)/(3960*Home!$L$20/100) -> 10.73526474
B26: =Energy!$D$16*100 -> 10 | C26: =+Energy!$E$16*100 -> 0 | D26: =+Energy!$F$17*C26*0.01 -> 0 | E26: =IF(IF(Home!$L$13*12000*B26/(100*500*$F$19)>$E$8*$F$5,$E$8*$F$5,Home!$L$13*12000*B26/(100*500*$F$19))<$E$17,$E$17,IF(Home!$L$13*12000*B26/(100*500*$F$19)>$E$8*$F$5,$E$8*$F$5,Home!$L$13*12000*B26/(100*500*$F$19))) -> 921.0857143 | F26: 30 | G26: =(E26*F26)/(3960*Home!$L$20/100) -> 10.73526474
B28: Chilled Water Distribution Flow at Delta T [F]: | F28: =Home!B27 -> 11
B29: Load [%] | C29: Time [%] | D29: Time [h] | E29: Flow [GPM] | F29: Head [ft] | G29: Power [HP] | I29: Pump costs
B30: =Energy!$D$11*100 -> 100 | C30: =+Energy!$E$11*100 -> 5 | D30: =+Energy!$F$17*C30*0.01 -> 137.414941 | E30: =IF(Home!$L$13*B30*0.01*24/(F28)>$E$8*$F$5,$E$8*$F$5,Home!$L$13*B30*0.01*24/(F28)) -> 3070.285714 | F30: =IF(($F$8*(E30/$E$8)^2)<$F$15,$F$15,($F$8*(E30/$E$8)^2)) -> 135 | G30: =(E30*F30)/(3960*Home!$L$20/100) -> 161.028971 | H30: Pump costs | I30: =I33*Home!$L$12 -> 34259.16288
B31: =Energy!$D$12*100 -> 80 | C31: =+Energy!$E$12*100 -> 40 | D31: =+Energy!$F$17*C31*0.01 -> 1099.319528 | E31: =IF(IF(Home!$L$13*12000*B31/(100*500*$F$28)>$E$8*$F$5,$E$8*$F$5,Home!$L$13*12000*B31/(100*500*$F$28))<$E$17,$E$17,IF(Home!$L$13*12000*B31/(100*500*$F$28)>$E$8*$F$5,$E$8*$F$5,Home!$L$13*12000*B31/(100*500*$F$28))) -> 3070.285714 | F31: =IF(($F$8*(E31/$E$8)^2)<$F$15,$F$15,($F$8*(E31/$E$8)^2)) -> 135 | G31: =(E31*F31)/(3960*Home!$L$20/100) -> 161.028971 | H31: Annual Gal. | I31: =SUMPRODUCT(E30:E35,D30:D35)*60 -> 397662877.8
B32: =Energy!$D$13*100 -> 60 | C32: =+Energy!$E$13*100 -> 30 | D32: =+Energy!$F$17*C32*0.01 -> 824.4896461 | E32: =IF(IF(Home!$L$13*12000*B32/(100*500*$F$28)>$E$8*$F$5,$E$8*$F$5,Home!$L$13*12000*B32/(100*500*$F$28))<$E$17,$E$17,IF(Home!$L$13*12000*B32/(100*500*$F$28)>$E$8*$F$5,$E$8*$F$5,Home!$L$13*12000*B32/(100*500*$F$28))) -> 2344.581818 | F32: =IF(($F$8*(E32/$E$8)^2)<$F$15,$F$15,($F$8*(E32/$E$8)^2)) -> 78.72396694 | G32: =(E32*F32)/(3960*Home!$L$20/100) -> 71.70737434 | H32: Avg GPM | I32: =+I31/(60*Energy!$F$17) -> 2411.56987
B33: =Energy!$D$14*100 -> 40 | C33: =+Energy!$E$14*100 -> 15 | D33: =+Energy!$F$17*C33*0.01 -> 412.2448231 | E33: =IF(IF(Home!$L$13*12000*B33/(100*500*$F$28)>$E$8*$F$5,$E$8*$F$5,Home!$L$13*12000*B33/(100*500*$F$28))<$E$17,$E$17,IF(Home!$L$13*12000*B33/(100*500*$F$28)>$E$8*$F$5,$E$8*$F$5,Home!$L$13*12000*B33/(100*500*$F$28))) -> 1563.054545 | F33: =IF(($F$8*(E33/$E$8)^2)<$F$15,$F$15,($F$8*(E33/$E$8)^2)) -> 34.98842975 | G33: =(E33*F33)/(3960*Home!$L$20/100) -> 21.24662943 | H33: Energy [kWh] | I33: =SUMPRODUCT(D30:D35,G30:G35)*0.746 -> 201406.0134
B34: =Energy!$D$15*100 -> 20 | C34: =+Energy!$E$15*100 -> 10 | D34: =+Energy!$F$17*C34*0.01 -> 274.829882 | E34: =IF(IF(Home!$L$13*12000*B34/(100*500*$F$28)>$E$8*$F$5,$E$8*$F$5,Home!$L$13*12000*B34/(100*500*$F$28))<$E$17,$E$17,IF(Home!$L$13*12000*B34/(100*500*$F$28)>$E$8*$F$5,$E$8*$F$5,Home!$L$13*12000*B34/(100*500*$F$28))) -> 921.0857143 | F34: =IF(($F$8*(E34/$E$8)^2)<$F$15,$F$15,($F$8*(E34/$E$8)^2)) -> 30 | G34: =(E34*F34)/(3960*Home!$L$20/100) -> 10.73526474
B35: =Energy!$D$16*100 -> 10 | C35: =+Energy!$E$16*100 -> 0 | D35: =+Energy!$F$17*C35*0.01 -> 0 | E35: =IF(IF(Home!$L$13*12000*B35/(100*500*$F$19)>$E$8*$F$5,$E$8*$F$5,Home!$L$13*12000*B35/(100*500*$F$19))<$E$17,$E$17,IF(Home!$L$13*12000*B35/(100*500*$F$19)>$E$8*$F$5,$E$8*$F$5,Home!$L$13*12000*B35/(100*500*$F$19))) -> 921.0857143 | F35: 30 | G35: =(E35*F35)/(3960*Home!$L$20/100) -> 10.73526474
B37: Chilled Water Distribution Flow at Delta T [F]: | F37: =+Home!B28 -> 12
B38: Load [%] | C38: Time [%] | D38: Time [h] | E38: Flow [GPM] | F38: Head [ft] | G38: Power [HP] | I38: Pump costs
B39: =Energy!$D$11*100 -> 100 | C39: =+Energy!$E$11*100 -> 5 | D39: =+Energy!$F$17*C39*0.01 -> 137.414941 | E39: =IF(Home!$L$13*B39*0.01*24/(F37)>$E$8*$F$5,$E$8*$F$5,Home!$L$13*B39*0.01*24/(F37)) -> 3070.285714 | F39: =IF(($F$8*(E39/$E$8)^2)<$F$15,$F$15,($F$8*(E39/$E$8)^2)) -> 135 | G39: =(E39*F39)/(3960*Home!$L$20/100) -> 161.028971 | H39: Pump costs | I39: =I42*Home!$L$12 -> 28097.89354
B40: =Energy!$D$12*100 -> 80 | C40: =+Energy!$E$12*100 -> 40 | D40: =+Energy!$F$17*C40*0.01 -> 1099.319528 | E40: =IF(IF(Home!$L$13*12000*B40/(100*500*$F$37)>$E$8*$F$5,$E$8*$F$5,Home!$L$13*12000*B40/(100*500*$F$37))<$E$17,$E$17,IF(Home!$L$13*12000*B40/(100*500*$F$37)>$E$8*$F$5,$E$8*$F$5,Home!$L$13*12000*B40/(100*500*$F$37))) -> 2865.6 | F40: =IF(($F$8*(E40/$E$8)^2)<$F$15,$F$15,($F$8*(E40/$E$8)^2)) -> 117.6 | G40: =(E40*F40)/(3960*Home!$L$20/100) -> 130.9225175 | H40: Annual Gal. | I40: =SUMPRODUCT(E39:E44,D39:D44)*60 -> 371274754.7
B41: =Energy!$D$13*100 -> 60 | C41: =+Energy!$E$13*100 -> 30 | D41: =+Energy!$F$17*C41*0.01 -> 824.4896461 | E41: =IF(IF(Home!$L$13*12000*B41/(100*500*$F$37)>$E$8*$F$5,$E$8*$F$5,Home!$L$13*12000*B41/(100*500*$F$37))<$E$17,$E$17,IF(Home!$L$13*12000*B41/(100*500*$F$37)>$E$8*$F$5,$E$8*$F$5,Home!$L$13*12000*B41/(100*500*$F$37))) -> 2149.2 | F41: =IF(($F$8*(E41/$E$8)^2)<$F$15,$F$15,($F$8*(E41/$E$8)^2)) -> 66.15 | G41: =(E41*F41)/(3960*Home!$L$20/100) -> 55.23293706 | H41: Avg GPM | I41: =+I40/(60*Energy!$F$17) -> 2251.542857
B42: =Energy!$D$14*100 -> 40 | C42: =+Energy!$E$14*100 -> 15 | D42: =+Energy!$F$17*C42*0.01 -> 412.2448231 | E42: =IF(IF(Home!$L$13*12000*B42/(100*500*$F$37)>$E$8*$F$5,$E$8*$F$5,Home!$L$13*12000*B42/(100*500*$F$37))<$E$17,$E$17,IF(Home!$L$13*12000*B42/(100*500*$F$37)>$E$8*$F$5,$E$8*$F$5,Home!$L$13*12000*B42/(100*500*$F$37))) -> 1432.8 | F42: =IF(($F$8*(E42/$E$8)^2)<$F$15,$F$15,($F$8*(E42/$E$8)^2)) -> 30 | G42: =(E42*F42)/(3960*Home!$L$20/100) -> 16.6993007 | H42: Energy [kWh] | I42: =SUMPRODUCT(D39:D44,G39:G44)*0.746 -> 165184.5593
B43: =Energy!$D$15*100 -> 20 | C43: =+Energy!$E$15*100 -> 10 | D43: =+Energy!$F$17*C43*0.01 -> 274.829882 | E43: =IF(IF(Home!$L$13*12000*B43/(100*500*$F$37)>$E$8*$F$5,$E$8*$F$5,Home!$L$13*12000*B43/(100*500*$F$37))<$E$17,$E$17,IF(Home!$L$13*12000*B43/(100*500*$F$37)>$E$8*$F$5,$E$8*$F$5,Home!$L$13*12000*B43/(100*500*$F$37))) -> 921.0857143 | F43: =IF(($F$8*(E43/$E$8)^2)<$F$15,$F$15,($F$8*(E43/$E$8)^2)) -> 30 | G43: =(E43*F43)/(3960*Home!$L$20/100) -> 10.73526474
B44: =Energy!$D$16*100 -> 10 | C44: =+Energy!$E$16*100 -> 0 | D44: =+Energy!$F$17*C44*0.01 -> 0 | E44: =IF(IF(Home!$L$13*12000*B44/(100*500*$F$37)>$E$8*$F$5,$E$8*$F$5,Home!$L$13*12000*B44/(100*500*$F$37))<$E$17,$E$17,IF(Home!$L$13*12000*B44/(100*500*$F$37)>$E$8*$F$5,$E$8*$F$5,Home!$L$13*12000*B44/(100*500*$F$37))) -> 921.0857143 | F44: 30 | G44: =(E44*F44)/(3960*Home!$L$20/100) -> 10.73526474
B46: Chilled Water Distribution Flow at Delta T [F]: | F46: =Home!B29 -> 13
B47: Load [%] | C47: Time [%] | D47: Time [h] | E47: Flow [GPM] | F47: Head [ft] | G47: Power [HP] | I47: Pump costs
B48: =Energy!$D$11*100 -> 100 | C48: =+Energy!$E$11*100 -> 5 | D48: =+Energy!$F$17*C48*0.01 -> 137.414941 | E48: =IF(Home!$L$13*B48*0.01*24/(F46)>$E$8*$F$5,$E$8*$F$5,Home!$L$13*B48*0.01*24/(F46)) -> 3070.285714 | F48: =IF(($F$8*(E48/$E$8)^2)<$F$15,$F$15,($F$8*(E48/$E$8)^2)) -> 135 | G48: =(E48*F48)/(3960*Home!$L$20/100) -> 161.028971 | H48: Pump costs | I48: =I51*Home!$L$12 -> 22898.37098
B49: =Energy!$D$12*100 -> 80 | C49: =+Energy!$E$12*100 -> 40 | D49: =+Energy!$F$17*C49*0.01 -> 1099.319528 | E49: =IF(IF(Home!$L$13*12000*B49/(100*500*$F$46)>$E$8*$F$5,$E$8*$F$5,Home!$L$13*12000*B49/(100*500*$F$46))<$E$17,$E$17,IF(Home!$L$13*12000*B49/(100*500*$F$46)>$E$8*$F$5,$E$8*$F$5,Home!$L$13*12000*B49/(100*500*$F$46))) -> 2645.169231 | F49: =IF(($F$8*(E49/$E$8)^2)<$F$15,$F$15,($F$8*(E49/$E$8)^2)) -> 100.2035503 | G49: =(E49*F49)/(3960*Home!$L$20/100) -> 102.9741057 | H49: Annual Gal. | I49: =SUMPRODUCT(E48:E53,D48:D53)*60 -> 345830750.5
B50: =Energy!$D$13*100 -> 60 | C50: =+Energy!$E$13*100 -> 30 | D50: =+Energy!$F$17*C50*0.01 -> 824.4896461 | E50: =IF(IF(Home!$L$13*12000*B50/(100*500*$F$46)>$E$8*$F$5,$E$8*$F$5,Home!$L$13*12000*B50/(100*500*$F$46))<$E$17,$E$17,IF(Home!$L$13*12000*B50/(100*500*$F$46)>$E$8*$F$5,$E$8*$F$5,Home!$L$13*12000*B50/(100*500*$F$46))) -> 1983.876923 | F50: =IF(($F$8*(E50/$E$8)^2)<$F$15,$F$15,($F$8*(E50/$E$8)^2)) -> 56.36449704 | G50: =(E50*F50)/(3960*Home!$L$20/100) -> 43.44220084 | H50: Avg GPM | I50: =+I49/(60*Energy!$F$17) -> 2097.241319
B51: =Energy!$D$14*100 -> 40 | C51: =+Energy!$E$14*100 -> 15 | D51: =+Energy!$F$17*C51*0.01 -> 412.2448231 | E51: =IF(IF(Home!$L$13*12000*B51/(100*500*$F$46)>$E$8*$F$5,$E$8*$F$5,Home!$L$13*12000*B51/(100*500*$F$46))<$E$17,$E$17,IF(Home!$L$13*12000*B51/(100*500*$F$46)>$E$8*$F$5,$E$8*$F$5,Home!$L$13*12000*B51/(100*500*$F$46))) -> 1322.584615 | F51: =IF(($F$8*(E51/$E$8)^2)<$F$15,$F$15,($F$8*(E51/$E$8)^2)) -> 30 | G51: =(E51*F51)/(3960*Home!$L$20/100) -> 15.41473911 | H51: Energy [kWh] | I51: =SUMPRODUCT(D48:D53,G48:G53)*0.746 -> 134617.1134
B52: =Energy!$D$15*100 -> 20 | C52: =+Energy!$E$15*100 -> 10 | D52: =+Energy!$F$17*C52*0.01 -> 274.829882 | E52: =IF(IF(Home!$L$13*12000*B52/(100*500*$F$46)>$E$8*$F$5,$E$8*$F$5,Home!$L$13*12000*B52/(100*500*$F$46))<$E$17,$E$17,IF(Home!$L$13*12000*B52/(100*500*$F$46)>$E$8*$F$5,$E$8*$F$5,Home!$L$13*12000*B52/(100*500*$F$46))) -> 921.0857143 | F52: =IF(($F$8*(E52/$E$8)^2)<$F$15,$F$15,($F$8*(E52/$E$8)^2)) -> 30 | G52: =(E52*F52)/(3960*Home!$L$20/100) -> 10.73526474
B53: =Energy!$D$16*100 -> 10 | C53: =+Energy!$E$16*100 -> 0 | D53: =+Energy!$F$17*C53*0.01 -> 0 | E53: =IF(IF(Home!$L$13*12000*B53/(100*500*$F$46)>$E$8*$F$5,$E$8*$F$5,Home!$L$13*12000*B53/(100*500*$F$46))<$E$17,$E$17,IF(Home!$L$13*12000*B53/(100*500*$F$46)>$E$8*$F$5,$E$8*$F$5,Home!$L$13*12000*B53/(100*500*$F$46))) -> 921.0857143 | F53: 30 | G53: =(E53*F53)/(3960*Home!$L$20/100) -> 10.73526474
B55: Chilled Water Distribution Flow at Delta T [F]: | F55: =Home!B30 -> 14
B56: Load [%] | C56: Time [%] | D56: Time [h] | E56: Flow [GPM] | F56: Head [ft] | G56: Power [HP] | I56: Pump costs
B57: =Energy!$D$11*100 -> 100 | C57: =+Energy!$E$11*100 -> 5 | D57: =+Energy!$F$17*C57*0.01 -> 137.414941 | E57: =IF(Home!$L$13*B57*0.01*24/(F55)>$E$8*$F$5,$E$8*$F$5,Home!$L$13*B57*0.01*24/(F55)) -> 3070.285714 | F57: =IF(($F$8*(E57/$E$8)^2)<$F$15,$F$15,($F$8*(E57/$E$8)^2)) -> 135 | G57: =(E57*F57)/(3960*Home!$L$20/100) -> 161.028971 | H57: Pump costs | I57: =I60*Home!$L$12 -> 19071.23387
B58: =Energy!$D$12*100 -> 80 | C58: =+Energy!$E$12*100 -> 40 | D58: =+Energy!$F$17*C58*0.01 -> 1099.319528 | E58: =IF(IF(Home!$L$13*12000*B58/(100*500*$F$55)>$E$8*$F$5,$E$8*$F$5,Home!$L$13*12000*B58/(100*500*$F$55))<$E$17,$E$17,IF(Home!$L$13*12000*B58/(100*500*$F$55)>$E$8*$F$5,$E$8*$F$5,Home!$L$13*12000*B58/(100*500*$F$55))) -> 2456.228571 | F58: =IF(($F$8*(E58/$E$8)^2)<$F$15,$F$15,($F$8*(E58/$E$8)^2)) -> 86.4 | G58: =(E58*F58)/(3960*Home!$L$20/100) -> 82.44683317 | H58: Annual Gal. | I58: =SUMPRODUCT(E57:E62,D57:D62)*60 -> 324021604.1
B59: =Energy!$D$13*100 -> 60 | C59: =+Energy!$E$13*100 -> 30 | D59: =+Energy!$F$17*C59*0.01 -> 824.4896461 | E59: =IF(IF(Home!$L$13*12000*B59/(100*500*$F$55)>$E$8*$F$5,$E$8*$F$5,Home!$L$13*12000*B59/(100*500*$F$55))<$E$17,$E$17,IF(Home!$L$13*12000*B59/(100*500*$F$55)>$E$8*$F$5,$E$8*$F$5,Home!$L$13*12000*B59/(100*500*$F$55))) -> 1842.171429 | F59: =IF(($F$8*(E59/$E$8)^2)<$F$15,$F$15,($F$8*(E59/$E$8)^2)) -> 48.6 | G59: =(E59*F59)/(3960*Home!$L$20/100) -> 34.78225774 | H59: Avg GPM | I59: =+I58/(60*Energy!$F$17) -> 1964.982857
B60: =Energy!$D$14*100 -> 40 | C60: =+Energy!$E$14*100 -> 15 | D60: =+Energy!$F$17*C60*0.01 -> 412.2448231 | E60: =IF(IF(Home!$L$13*12000*B60/(100*500*$F$55)>$E$8*$F$5,$E$8*$F$5,Home!$L$13*12000*B60/(100*500*$F$55))<$E$17,$E$17,IF(Home!$L$13*12000*B60/(100*500*$F$55)>$E$8*$F$5,$E$8*$F$5,Home!$L$13*12000*B60/(100*500*$F$55))) -> 1228.114286 | F60: =IF(($F$8*(E60/$E$8)^2)<$F$15,$F$15,($F$8*(E60/$E$8)^2)) -> 30 | G60: =(E60*F60)/(3960*Home!$L$20/100) -> 14.31368631 | H60: Energy [kWh] | I60: =SUMPRODUCT(D57:D62,G57:G62)*0.746 -> 112117.777
B61: =Energy!$D$15*100 -> 20 | C61: =+Energy!$E$15*100 -> 10 | D61: =+Energy!$F$17*C61*0.01 -> 274.829882 | E61: =IF(IF(Home!$L$13*12000*B61/(100*500*$F$55)>$E$8*$F$5,$E$8*$F$5,Home!$L$13*12000*B61/(100*500*$F$55))<$E$17,$E$17,IF(Home!$L$13*12000*B61/(100*500*$F$55)>$E$8*$F$5,$E$8*$F$5,Home!$L$13*12000*B61/(100*500*$F$55))) -> 921.0857143 | F61: =IF(($F$8*(E61/$E$8)^2)<$F$15,$F$15,($F$8*(E61/$E$8)^2)) -> 30 | G61: =(E61*F61)/(3960*Home!$L$20/100) -> 10.73526474
B62: =Energy!$D$16*100 -> 10 | C62: =+Energy!$E$16*100 -> 0 | D62: =+Energy!$F$17*C62*0.01 -> 0 | E62: =IF(IF(Home!$L$13*12000*B62/(100*500*$F$55)>$E$8*$F$5,$E$8*$F$5,Home!$L$13*12000*B62/(100*500*$F$55))<$E$17,$E$17,IF(Home!$L$13*12000*B62/(100*500*$F$55)>$E$8*$F$5,$E$8*$F$5,Home!$L$13*12000*B62/(100*500*$F$55))) -> 921.0857143 | F62: 30 | G62: =(E62*F62)/(3960*Home!$L$20/100) -> 10.73526474
B64: Chilled Water Distribution Flow at Delta T [F]: | F64: =Home!B31 -> 15
B65: Load [%] | C65: Time [%] | D65: Time [h] | E65: Flow [GPM] | F65: Head [ft] | G65: Power [HP] | I65: Pump costs
B66: =Energy!$D$11*100 -> 100 | C66: =+Energy!$E$11*100 -> 5 | D66: =+Energy!$F$17*C66*0.01 -> 137.414941 | E66: =IF(Home!$L$13*B66*0.01*24/(F64)>$E$8*$F$5,$E$8*$F$5,Home!$L$13*B66*0.01*24/(F64)) -> 2865.6 | F66: =IF(($F$8*(E66/$E$8)^2)<$F$15,$F$15,($F$8*(E66/$E$8)^2)) -> 117.6 | G66: =(E66*F66)/(3960*Home!$L$20/100) -> 130.9225175 | H66: Pump costs | I66: =I69*Home!$L$12 -> 15665.69039
B67: =Energy!$D$12*100 -> 80 | C67: =+Energy!$E$12*100 -> 40 | D67: =+Energy!$F$17*C67*0.01 -> 1099.319528 | E67: =IF(IF(Home!$L$13*12000*B67/(100*500*$F$64)>$E$8*$F$5,$E$8*$F$5,Home!$L$13*12000*B67/(100*500*$F$64))<$E$17,$E$17,IF(Home!$L$13*12000*B67/(100*500*$F$64)>$E$8*$F$5,$E$8*$F$5,Home!$L$13*12000*B67/(100*500*$F$64))) -> 2292.48 | F67: =IF(($F$8*(E67/$E$8)^2)<$F$15,$F$15,($F$8*(E67/$E$8)^2)) -> 75.264 | G67: =(E67*F67)/(3960*Home!$L$20/100) -> 67.03232895 | H67: Annual Gal. | I67: =SUMPRODUCT(E66:E71,D66:D71)*60 -> 303432731.3
B68: =Energy!$D$13*100 -> 60 | C68: =+Energy!$E$13*100 -> 30 | D68: =+Energy!$F$17*C68*0.01 -> 824.4896461 | E68: =IF(IF(Home!$L$13*12000*B68/(100*500*$F$64)>$E$8*$F$5,$E$8*$F$5,Home!$L$13*12000*B68/(100*500*$F$64))<$E$17,$E$17,IF(Home!$L$13*12000*B68/(100*500*$F$64)>$E$8*$F$5,$E$8*$F$5,Home!$L$13*12000*B68/(100*500*$F$64))) -> 1719.36 | F68: =IF(($F$8*(E68/$E$8)^2)<$F$15,$F$15,($F$8*(E68/$E$8)^2)) -> 42.336 | G68: =(E68*F68)/(3960*Home!$L$20/100) -> 28.27926378 | H68: Avg GPM | I68: =+I67/(60*Energy!$F$17) -> 1840.124571
B69: =Energy!$D$14*100 -> 40 | C69: =+Energy!$E$14*100 -> 15 | D69: =+Energy!$F$17*C69*0.01 -> 412.2448231 | E69: =IF(IF(Home!$L$13*12000*B69/(100*500*$F$64)>$E$8*$F$5,$E$8*$F$5,Home!$L$13*12000*B69/(100*500*$F$64))<$E$17,$E$17,IF(Home!$L$13*12000*B69/(100*500*$F$64)>$E$8*$F$5,$E$8*$F$5,Home!$L$13*12000*B69/(100*500*$F$64))) -> 1146.24 | F69: =IF(($F$8*(E69/$E$8)^2)<$F$15,$F$15,($F$8*(E69/$E$8)^2)) -> 30 | G69: =(E69*F69)/(3960*Home!$L$20/100) -> 13.35944056 | H69: Energy [kWh] | I69: =SUMPRODUCT(D66:D71,G66:G71)*0.746 -> 92096.94524
B70: =Energy!$D$15*100 -> 20 | C70: =+Energy!$E$15*100 -> 10 | D70: =+Energy!$F$17*C70*0.01 -> 274.829882 | E70: =IF(IF(Home!$L$13*12000*B70/(100*500*$F$64)>$E$8*$F$5,$E$8*$F$5,Home!$L$13*12000*B70/(100*500*$F$64))<$E$17,$E$17,IF(Home!$L$13*12000*B70/(100*500*$F$64)>$E$8*$F$5,$E$8*$F$5,Home!$L$13*12000*B70/(100*500*$F$64))) -> 921.0857143 | F70: =IF(($F$8*(E70/$E$8)^2)<$F$15,$F$15,($F$8*(E70/$E$8)^2)) -> 30 | G70: =(E70*F70)/(3960*Home!$L$20/100) -> 10.73526474
B71: =Energy!$D$16*100 -> 10 | C71: =+Energy!$E$16*100 -> 0 | D71: =+Energy!$F$17*C71*0.01 -> 0 | E71: =IF(IF(Home!$L$13*12000*B71/(100*500*$F$64)>$E$8*$F$5,$E$8*$F$5,Home!$L$13*12000*B71/(100*500*$F$64))<$E$17,$E$17,IF(Home!$L$13*12000*B71/(100*500*$F$64)>$E$8*$F$5,$E$8*$F$5,Home!$L$13*12000*B71/(100*500*$F$64))) -> 921.0857143 | F71: 30 | G71: =(E71*F71)/(3960*Home!$L$20/100) -> 10.73526474

Sheet Financials
A9: Discount Rate: | B9: =Home!L43/100 -> 0.1
A10: Finance Rate: | B10: 0.1
A11: Reinvestment Rate: | B11: 0.1
A12: Inflation Rate | B12: =Home!L44/100 -> 0.03
B14: Today | C14: End of Year 1 | D14: End of Year 2 | E14: End of Year 3 | F14: End of Year 4 | G14: End of Year 5 | H14: End of Year 6 | I14: End of Year 7 | J14: End of Year 8 | K14: End of Year 9 | L14: End of Year 10 | M14: End of Year 11 | N14: End of Year 12 | O14: End of Year 13 | P14: End of Year 14 | Q14: End of Year 15 | R14: End of Year 16 | S14: End of Year 17 | T14: End of Year 18 | U14: End of Year 19 | V14: End of Year 20
A15: Date: | B15: 0 | C15: 1 | D15: 2 | E15: 3 | F15: 4 | G15: 5 | H15: 6 | I15: 7 | J15: 8 | K15: 9 | L15: 10 | M15: 11 | N15: 12 | O15: 13 | P15: 14 | Q15: 15 | R15: 16 | S15: 17 | T15: 18 | U15: 19 | V15: 20
A18: Single Investment | B18: =Home!L42*-1 -> -290000 | C18: 0 | D18: 0 | E18: 0 | F18: 0 | G18: 0 | H18: 0 | I18: 0 | J18: 0 | K18: 0 | L18: 0 | M18: =+L18*(1+$B$12) -> 0 | N18: =+M18*(1+$B$12) -> 0 | O18: 0 | P18: 0 | Q18: 0 | R18: 0 | S18: 0 | T18: 0 | U18: 0 | V18: 0
A19: Phased Investment | B19: 0 | C19: 0 | D19: 0 | E19: 0 | F19: 0 | G19: 0 | H19: 0 | I19: 0 | J19: 0 | K19: 0 | L19: 0 | M19: =+L19*(1+$B$12) -> 0 | N19: =+M19*(1+$B$12) -> 0 | O19: 0 | P19: 0 | Q19: 0 | R19: 0 | S19: 0 | T19: 0 | U19: 0 | V19: =+U19*(1+$B$12) -> 0
A20: Financed Investment | B20: 0 | C20: 0 | D20: 0 | E20: 0 | F20: 0 | G20: 0 | H20: 0 | I20: 0 | J20: 0 | K20: 0 | L20: 0 | M20: =+L20*(1+$B$12) -> 0 | N20: 0 | O20: 0 | P20: 0 | Q20: 0 | R20: 0 | S20: 0 | T20: 0 | U20: 0 | V20: 0
A21: Subtotal | B21: =SUM(B18:B20) -> -290000 | C21: 0 | D21: 0 | E21: 0 | F21: 0 | G21: 0 | H21: 0 | I21: 0 | J21: 0 | K21: 0 | L21: 0 | M21: =SUM(M18:M20) -> 0 | N21: 0 | O21: 0 | P21: 0 | Q21: 0 | R21: 0 | S21: 0 | T21: 0 | U21: 0 | V21: 0
A22: Rebate Rec'd at Project Start | B22: 0
A23: Subtotal Outflows | B23: =SUM(B21:B22) -> -290000 | C23: =SUM(C21:C22) -> 0 | D23: 0 | E23: 0 | F23: 0 | G23: 0 | H23: 0 | I23: 0 | J23: 0 | K23: 0 | L23: 0 | M23: =SUM(M21:M22) -> 0 | N23: 0 | O23: 0 | P23: 0 | Q23: 0 | R23: 0 | S23: 0 | T23: 0 | U23: 0 | V23: 0
A26: Energy Savings | C26: =Home!L33 -> 28198.7492 | D26: =C26*(1+$B$12) -> 29044.71168 | E26: 29916.05303 | F26: 30813.53462 | G26: 31737.94066 | H26: 32690.07888 | I26: 33670.78124 | J26: 34680.90468 | K26: 35721.33182 | L26: 36792.97177 | M26: =L26*(1+$B$12) -> 37896.76093 | N26: 39033.66375 | O26: 40204.67367 | P26: 41410.81388 | Q26: 42653.13829 | R26: 43932.73244 | S26: 45250.71442 | T26: 46608.23585 | U26: 48006.48292 | V26: 49446.67741
A27: Maintenance/Other Savings | C27: =SUM(Home!L36:L38) -> 600 | D27: =C27*(1+$B$12) -> 618 | E27: 636.54 | F27: 655.6362 | G27: 675.305286 | H27: 695.5644446 | I27: 716.4313779 | J27: 737.9243193 | K27: 760.0620488 | L27: 782.8639103 | M27: =L27*(1+$B$12) -> 806.3498276 | N27: 830.5403224 | O27: 855.4565321 | P27: 881.1202281 | Q27: 907.5538349 | R27: 934.78045 | S27: 962.8238635 | T27: 991.7085794 | U27: 1021.459837 | V27: 1052.103632
A28: Rebates Rec'd after Project Start | C28: 0 | D28: 0 | E28: 0 | F28: 0 | G28: 0 | H28: 0 | I28: 0 | J28: 0 | K28: 0 | L28: 0 | M28: 0 | N28: 0 | O28: 0 | P28: 0 | Q28: 0 | R28: 0 | S28: 0 | T28: 0 | U28: 0 | V28: 0
A29: Subtotal Inflows | C29: =SUM(C26:C28) -> 28798.7492 | D29: =SUM(D26:D28) -> 29662.71168 | E29: 30552.59303 | F29: 31469.17082 | G29: 32413.24594 | H29: 33385.64332 | I29: 34387.21262 | J29: 35418.829 | K29: 36481.39387 | L29: =SUM(L26:L28) -> 37575.83568 | M29: =SUM(M26:M28) -> 38703.11075 | N29: 39864.20408 | O29: 41060.1302 | P29: 42291.93411 | Q29: 43560.69213 | R29: 44867.51289 | S29: 46213.53828 | T29: 47599.94443 | U29: 49027.94276 | V29: 50498.78104
A31: Annual Cash Flow | B31: =B23+B29 -> -290000 | C31: =C23+C29 -> 28798.7492 | D31: =D23+D29 -> 29662.71168 | E31: 30552.59303 | F31: 31469.17082 | G31: 32413.24594 | H31: 33385.64332 | I31: 34387.21262 | J31: 35418.829 | K31: 36481.39387 | L31: 37575.83568 | M31: =M23+M29 -> 38703.11075 | N31: 39864.20408 | O31: 41060.1302 | P31: 42291.93411 | Q31: 43560.69213 | R31: 44867.51289 | S31: 46213.53828 | T31: 47599.94443 | U31: 49027.94276 | V31: 50498.78104
A33: PV of Outflows (for SIR calculation) | B33: =SUM(B23)/(1+$B$9)^B$15 -> -290000 | C33: 0 | D33: 0 | E33: 0 | F33: 0 | G33: 0 | H33: 0 | I33: 0 | J33: 0 | K33: 0 | L33: 0 | M33: =SUM(M23)/(1+$B$9)^M$15 -> 0 | N33: 0 | O33: 0 | P33: 0 | Q33: 0 | R33: 0 | S33: 0 | T33: 0 | U33: 0 | V33: 0
A34: PV of Inflows (for SIR calculation) | B34: =B29/(1+$B$9)^B$15 -> 0 | C34: =C29/(1+$B$9)^C$15 -> 26180.68109 | D34: 24514.63775 | E34: 22954.61535 | F34: 21493.8671 | G34: 20126.07555 | H34: 18845.32529 | I34: 17646.07732 | J34: 16523.14513 | K34: 15471.67225 | L34: 14487.11129 | M34: =M29/(1+$B$9)^M$15 -> 13565.20421 | N34: 12701.96394 | O34: 11893.65715 | P34: 11136.78806 | Q34: 10428.08336 | R34: 9764.478056 | S34: 9143.10218 | T34: 8561.268405 | U34: 8016.460415 | V34: 7506.322025
A35: Cumulative Cash Flows | B35: =B31 -> -290000 | C35: =B35+C31 -> -261201.2508 | D35: =C35+D31 -> -231538.5391 | E35: -200985.9461 | F35: -169516.7753 | G35: -137103.5293 | H35: -103717.886 | I35: -69330.6734 | J35: -33911.8444 | K35: 2569.549468 | L35: 40145.38515 | M35: =L35+M31 -> 78848.49591 | N35: 118712.7 | O35: 159772.8302 | P35: 202064.7643 | Q35: 245625.4564 | R35: 290492.9693 | S35: 336706.5076 | T35: 384306.452 | U35: 433334.3948 | V35: 483833.1758
A36: Annual Present Value | B36: =B31/(1+$B$9)^B15 -> -290000 | C36: =C31/(1+$B$9)^C15 -> 26180.68109 | D36: 24514.63775 | E36: 22954.61535 | F36: 21493.8671 | G36: 20126.07555 | H36: 18845.32529 | I36: 17646.07732 | J36: 16523.14513 | K36: 15471.67225 | L36: 14487.11129 | M36: =M31/(1+$B$9)^M15 -> 13565.20421 | N36: 12701.96394 | O36: 11893.65715 | P36: 11136.78806 | Q36: 10428.08336 | R36: 9764.478056 | S36: 9143.10218 | T36: 8561.268405 | U36: 8016.460415 | V36: 7506.322025
A37: Cumulative Present Value | B37: =B36 -> -290000 | C37: =B37+C36 -> -263819.3189 | D37: =C37+D36 -> -239304.6812 | E37: -216350.0658 | F37: -194856.1987 | G37: -174730.1232 | H37: -155884.7979 | I37: -138238.7205 | J37: -121715.5754 | K37: -106243.9032 | L37: -91756.79188 | M37: =L37+M36 -> -78191.58767 | N37: -65489.62372 | O37: -53595.96658 | P37: -42459.17852 | Q37: -32031.09516 | R37: -22266.61711 | S37: -13123.51493 | T37: -4562.246521 | U37: 3454.213894 | V37: 10960.53592
C38: *Note: Certain Returns Vary Depending on the Length of the Analysis Term*
B39: 10 Year | C39: 1 Year | D39: 2 Year | E39: 3 Year | F39: 4 Year | G39: 5 Year | H39: 6 Year | I39: 7 Year | J39: 8 Year | K39: 9 Year | L39: 10 Year | M39: 11 Year | N39: 12 Year | O39: 13 Year | P39: 14 Year | Q39: 15 Year | R39: 16 Year | S39: 17 Year | T39: 18 Year | U39: 19 Year | V39: 20 Year
A40: Net Present Value (NPV) | B40: =SUM(B36:L36) -> -91756.79188 | C40: =$B$36+SUM($C$36:C36) -> -263819.3189 | D40: =$B$36+SUM($C$36:D36) -> -239304.6812 | E40: =$B$36+SUM($C$36:E36) -> -216350.0658 | F40: =$B$36+SUM($C$36:F36) -> -194856.1987 | G40: =$B$36+SUM($C$36:G36) -> -174730.1232 | H40: =$B$36+SUM($C$36:H36) -> -155884.7979 | I40: =$B$36+SUM($C$36:I36) -> -138238.7205 | J40: =$B$36+SUM($C$36:J36) -> -121715.5754 | K40: =$B$36+SUM($C$36:K36) -> -106243.9032 | L40: =$B$36+SUM($C$36:L36) -> -91756.79188 | M40: =$B$36+SUM($C$36:M36) -> -78191.58767 | N40: =$B$36+SUM($C$36:N36) -> -65489.62372 | O40: =$B$36+SUM($C$36:O36) -> -53595.96658 | P40: =$B$36+SUM($C$36:P36) -> -42459.17852 | Q40: =$B$36+SUM($C$36:Q36) -> -32031.09516 | R40: =$B$36+SUM($C$36:R36) -> -22266.61711 | S40: =$B$36+SUM($C$36:S36) -> -13123.51493 | T40: =$B$36+SUM($C$36:T36) -> -4562.246521 | U40: =$B$36+SUM($C$36:U36) -> 3454.213894 | V40: =$B$36+SUM($C$36:V36) -> 10960.53592
A41: Simple Payback Period (SPP) | B41: =IF(C21>0,"N/A",-B31/C31) -> 10.06988178
A42: Return on Investment (ROI) | B42: =IF(C21>0,"N/A",-C31/B31) -> 0.09930603172
A43: Internal Rate of Return (IRR) | B43: =IRR($B$31:$L$31,0.1) -> 0.0232164632 | C43: =IRR($B$31:$C$31,0.1) -> -0.9006939683 | D43: =IRR($B$31:$D$31,0.1) -> -0.626694957 | E43: =IRR($B$31:$E$31,0.1) -> -0.4162728011 | F43: =IRR($B$31:$F$31,0.1) -> -0.2748015051 | G43: =IRR($B$31:$G$31,0.1) -> -0.1786242758 | H43: =IRR($B$31:$H$31,0.1) -> -0.111156717 | I43: =IRR($B$31:$I$31,0.1) -> -0.06232089772 | J43: =IRR($B$31:$J$31,0.1) -> -0.02598254795 | K43: =IRR($B$31:$K$31,0.1) -> 0.001700768015 | L43: =IRR($B$31:$L$31,0.1) -> 0.0232164632 | M43: =IRR($B$31:$I$31,0.1) -> -0.06232089772 | N43: =IRR($B$31:$J$31,0.1) -> -0.02598254795 | O43: =IRR($B$31:$K$31,0.1) -> 0.001700768015 | P43: =IRR($B$31:$L$31,0.1) -> 0.0232164632 | Q43: =IRR($B$31:$I$31,0.1) -> -0.06232089772 | R43: =IRR($B$31:$J$31,0.1) -> -0.02598254795 | S43: =IRR($B$31:$K$31,0.1) -> 0.001700768015 | T43: =IRR($B$31:$L$31,0.1) -> 0.0232164632 | U43: =IRR($B$31:$I$31,0.1) -> -0.06232089772 | V43: =IRR($B$31:$J$31,0.1) -> -0.02598254795
A44: Modified Internal Rate of Return (MIRR) | B44: =MIRR($B$31:$L$31,$B$10,$B$11) -> 0.05894332486 | C44: =MIRR($B$31:$C$31,$B$10,$B$11) -> -0.9006939683 | D44: =MIRR($B$31:$D$31,$B$10,$B$11) -> -0.5400849561 | E44: =MIRR($B$31:$E$31,$B$10,$B$11) -> -0.3033989252 | F44: =MIRR($B$31:$F$31,$B$10,$B$11) -> -0.1674922016 | G44: =MIRR($B$31:$G$31,$B$10,$B$11) -> -0.08534723539 | H44: =MIRR($B$31:$H$31,$B$10,$B$11) -> -0.03267438772 | I44: =MIRR($B$31:$I$31,$B$10,$B$11) -> 0.002803793582 | J44: =MIRR($B$31:$J$31,$B$10,$B$11) -> 0.02765756992 | K44: =MIRR($B$31:$K$31,$B$10,$B$11) -> 0.04562347548 | L44: =MIRR($B$31:$L$31,$B$10,$B$11) -> 0.05894332486 | M44: =MIRR($B$31:$I$31,$B$10,$B$11) -> 0.002803793582 | N44: =MIRR($B$31:$J$31,$B$10,$B$11) -> 0.02765756992 | O44: =MIRR($B$31:$K$31,$B$10,$B$11) -> 0.04562347548 | P44: =MIRR($B$31:$L$31,$B$10,$B$11) -> 0.05894332486 | Q44: =MIRR($B$31:$I$31,$B$10,$B$11) -> 0.002803793582 | R44: =MIRR($B$31:$J$31,$B$10,$B$11) -> 0.02765756992 | S44: =MIRR($B$31:$K$31,$B$10,$B$11) -> 0.04562347548 | T44: =MIRR($B$31:$L$31,$B$10,$B$11) -> 0.05894332486 | U44: =MIRR($B$31:$I$31,$B$10,$B$11) -> 0.002803793582 | V44: =MIRR($B$31:$J$31,$B$10,$B$11) -> 0.02765756992
A45: Savings-Investment Ratio (SIR) | B45: =SUM($B$34:$L$34)/(ABS(SUM(B33:L33))) -> 0.6835972694 | C45: =SUM($B34:C34)/ABS(SUM($B33:C33)) -> 0.09027821066 | D45: =SUM($B34:D34)/ABS(SUM($B33:D33)) -> 0.1748114443 | E45: =SUM($B34:E34)/ABS(SUM($B33:E33)) -> 0.2539652903 | F45: =SUM($B34:F34)/ABS(SUM($B33:F33)) -> 0.3280820734 | G45: =SUM($B34:G34)/ABS(SUM($B33:G33)) -> 0.3974823339 | H45: =SUM($B34:H34)/ABS(SUM($B33:H33)) -> 0.4624662142 | I45: =SUM($B34:I34)/ABS(SUM($B33:I33)) -> 0.5233147567 | J45: =SUM($B34:J34)/ABS(SUM($B33:J33)) -> 0.5802911192 | K45: =SUM($B34:K34)/ABS(SUM($B33:K33)) -> 0.6336417132 | L45: =SUM($B34:L34)/ABS(SUM($B33:L33)) -> 0.6835972694 | M45: =SUM($B34:M34)/ABS(SUM($B33:M33)) -> 0.7303738356 | N45: =SUM($B34:N34)/ABS(SUM($B33:N33)) -> 0.7741737113 | O45: =SUM($B34:O34)/ABS(SUM($B33:O33)) -> 0.8151863221 | P45: =SUM($B34:P34)/ABS(SUM($B33:P33)) -> 0.8535890396 | Q45: =SUM($B34:Q34)/ABS(SUM($B33:Q33)) -> 0.8895479477 | R45: =SUM($B34:R34)/ABS(SUM($B33:R33)) -> 0.9232185617 | S45: =SUM($B34:S34)/ABS(SUM($B33:S33)) -> 0.9547465003 | T45: =SUM($B34:T34)/ABS(SUM($B33:T33)) -> 0.9842681154 | U45: =SUM($B34:U34)/ABS(SUM($B33:U33)) -> 1.011911082 | V45: =SUM($B34:V34)/ABS(SUM($B33:V33)) -> 1.037794951
B46: =+Home!B60 -> V.2021.1.02

Sheet InfoText (hidden)
A1: Sheet | B1: Cell Address | C1: Information Displayed
A2: Home | B2: $D$9 | C2: NOAA (National Oceanic and Atmospheric Administration) US Standard Regions
A3: Chiller | B3: $C$18 | C3: %Time data comes from the Energy tab.
A4: Chiller | B4: $F$18 | C4: Operating chiller capacity (Tons) calculated from the primary loop. If the % load cooling tons is greater than the chiller tons, then the Load equals the maximum chiller ton capacity. Otherwise, this value is eqal to the GPM*dT/24 Operating Chiller Tons=IF(+E19*$E$14/24>(Home!$L$13), Home!$L$13,(+E19*$E$14/24))
A5: Chiller | B5: $E$7 | C5: Operating Tons is calculated as secondary loop GPMxchiller plant dT (not to exceed chiller capacity). Formula=IF(+E19*$E$14/24>(Home!$L$13), Home!$L$13,(+E19*$E$14/24))
A6: Chiller | B6: $H$14 | C6: Savings from auxiliary chiller energy consumption in % per degree of delta t improvement
A7: Chiller | B7: $H$18 | C7: Chiller plant energy does not include energy saved by chillers because chiller kW/ton does not change for chiller Delta T. Raising Delta T allows lag chillers to turn off sooner which reduces primary pump power, condenser pump power, cooling tower fan, and auxilliary chiller power. Power = # chillers running x (KW2(ea) + KW3(ea)) + #tons x (KW4 kw/ton + KW6 kw/ton).
A8: Chiller | B8: $I$23 | C8: Total energy is the Power (Kw, Column H) times the operation time (h/yr, Column D).
A9: Chiller | B9: $K$18 | C9: LWT Plant checks to ensure the secondary loop water flow (GPM) calculated in Pump worksheet is less than or equal to the chiller plant primary loop flow in GPM (applies to Primary/Secondary pumping systems only). If "Normal", then the primary loop GPM is greater than or equal to the secondary loop GPM. If "LWT Loss", then the secondary loop GPM is greater than the primary loop GPM.
A10: Chiller | B10: $E$18 | C10: Secondary loop water flow (GPM) from the Pump worksheet
A11: Energy | B11: $D$31 | C11: http://www7.ncdc.noaa.gov/CDO/CDODivisionalSelect.jsp
A12: Energy | B12: $E$21 | C12: 5-year average adjusted for population density at base temperature of 65 F Source: National Climatic Data Center
A13: Energy | B13: $E$10 | C13: If the chiller plant load profile is known from actual trend log data, enter it here. If a new chiller plant or load profile is not known, then these %Load and %times are building modeling values that are calculated based on building type, location, chiller plant type and number of chillers. These values can be calculated using plant modeling modeling by myPLV(TM) Calculator tool that can be downloaded from the Trane website. The tool uses PNNL (Pacific Northwest National Labs) and ASHRAE / IES 90.1 - 2010 building modeling criteria.
A14: Energy | B14: $F$21 | C14: adjusted for population density at base temperature of 65 F - Use 30% for very humid climate. - Use 5% for for very dry climate. Source: National Climatic Data Center
A15: Energy | B15: $G$21 | C15: Multiplier = (Cooling Degree Days / Average US CDD)*(1 + Humidity Adjustment)
A16: Financials | B16: $B$12 | C16: This is the inflation rate that is predicted for the cost of electricity. Some forecasts predict this to between 3 and 4% annually, over the next decade. Formula =Home!J38/100
A17: Financials | B17: $B$18 | C17: Formula =Home!J36*-1
A18: Financials | B18: $B$9 | C18: This depends on the finance instrument of the investment. If the project is financed by a mortgage with an interest rate of 4%, then enter 4. Alternatively, it could be financed by a bank loan or simply by cash that's on an organizations balance sheet. Some companies are using a so called internal Hurdle Rate. Formula =Home!J37/100
A19: Financials | B19: $C$26 | C19: Formula =Home!J33
A20: Home | B20: $B$25 | C20: Average delta T scenarios
A21: Home | B21: $D$25 | C21: Average Flow based on the corresponding delta T. Formula linked to Pump Tab Column "N".
A22: Home | B22: $F$25 | C22: Average Tonage based on the corresponding average delta T and average flow. Formula linked to Chiller Tab Column "J".
A23: Home | B23: $F$47 | C23: The life-cycle savings of an energy improvement divided by the initial investment. (For every dollar invested in an energy improvement, how many dollars will be saved over the life of the improvement in today’s dollars) =+Financials!G45
A24: Home | B24: $F$48 | C24: Net present value is the present value of net cash inflows generated by a project including salvage value, if any, less the initial investment on the project. It is one of the most reliable measures used in capital budgeting because it accounts for time value of money by using discounted cash inflows. Before calculating NPV, a target rate of return is set which is used to discount the net cash inflows from a project. Net cash inflow equals total cash inflow during a period less the expenses directly incurred on generating the cash inflow. Formula =+Financials!$G$40
A25: Home | B25: $H$25 | C25: Formula =Pump!K24*Energy!$G$34
A26: Home | B26: $J$12 | C26: check: http://www.eia.gov/electricity
A27: Home | B27: $J$17 | C27: Enter the Integrated Part Load Value (IPLV) for the chiller from design if known. Otherwise select a value from this list: 0.3 High Efficiency Variable speed chillers with advanced control optimization 0.4 High-Efficiency Variable Speed chillers 0.6 Typical Constant Speed chillers 0.7 Typical Constant Speed Old style chillers
A28: Home | B28: $J$19 | C28: for conventional pump control based on static pressure sensor(s) use lowest possible pump head at part load conditions. If pump(s) are controlled based on actual load, use the min. pump head value as well. Adjust Min [ft./hd] on the Pump tab.
A29: Home | B29: $J$25 | C29: Formula =Chiller!I52*Energy!$G$34
A30: Home | B30: $J$36 | C30: Enter the estimated water treatment savings if a water cooled system. A rough estimate could be $300 per cooling tower per year. Enter $0 for air-cooled chiller systems.
A31: Home | B31: $J$37 | C31: Increasing the Delta T allows the lag chillers to run less hours of operation. This can extend the useful life of the chillers and corresponding pumps, extending the date when an expensive chiller replacement is necessary. The net present value (NPV) depends upon the replacement cost, age, and remaining life of the existing chillers.
A32: Home | B32: $J$38 | C32: Increasing the Delta T allows less water flow in the distribution loop and full and part load conditions. This can allow additional loads to be added to the secondary loop without having to replace expensive distribution pumps. The value will depend upon the cost of replacing pumps.
A33: Home | B33: $J$42 | C33: Enter the incremental costs for Energy Valves over conventional control valves such as balancing valves, circuit setters, and labor to install and balance. If there are new valves installed in the plant that will be replaced by Energy Valves, the whole replacement costs have to be considered.
A34: Home | B34: $J$43 | C34: This depends on the finance instrument of the investment. If the project is financed by a mortgage with an interest rate of 4%, then enter 4. Alternatively, it could be financed by a bank loan or simply by cash that's on an organizations balance sheet. Some companies are using a so called internal Hurdle Rate.
A35: Home | B35: $J$44 | C35: This is the inflation rate that is predicted for the cost of electricity. Some forecasts predict this to between 3 and 4% annually, over the next decade.
A36: Home | B36: $J$51 | C36: calculation according to EPA www.epa.gov
A37: Home | B37: $J$52 | C37: calculation according to EPA www.epa.gov
A38: Home | B38: $J$53 | C38: based on annual consumption of 11,880 kWh per home according to EPA www.epa.gov
A39: Home | B39: $L$25 | C39: Formula =J26+H26
A40: Home | B40: $N$25 | C40: Formula =L26/$L$12
A41: Pump | B41: $C$30 | C41: According to "The Centrifugal Pump Grundfos", Page 56
A42: Pump | B42: $C$38 | C42: According to "The Centrifugal Pump Grundfos", Page 56
A43: Pump | B43: $C$46 | C43: According to "The Centrifugal Pump Grundfos", Page 56
A44: Pump | B44: $C$54 | C44: According to "The Centrifugal Pump Grundfos", Page 56
A45: Pump | B45: $C$62 | C45: According to "The Centrifugal Pump Grundfos", Page 56
A46: Pump | B46: $C$7 | C46: The constants are based on the weighted average of the most common building types, and operating hours, using average USA weather data. To reduce the number of data points, the ASHRAE based bin data was Formula=Energy!E$10 through $E$15
A47: Pump | B47: $C$70 | C47: According to "The Centrifugal Pump Grundfos", Page 56
A48: Pump | B48: $E$15 | C48: Enter estimated Pump minimum head pressure drop [ft] and minimum distribution loop flow [GPM] during pump operation. This would depend upon if there is a bypass loop or 3-way valves in the system that always flow a minumum amount of water regardless of the cooling load needs. Sometimes this min. flow is marked on the central plant design drawings (piping diagram).
A49: Pump | B49: $F$22 | C49: Static pressure control of pump(s) is considered for the calculation of the reduced pump head at part load conditions. A head reduction according to the affinity laws would assume a system with one valve only and without static pressure sensor. The min. head is limited depending on the chosen value.
A50: Pump | B50: $F$5 | C50: This factor assumes that the pump can generate more GPM than its design selection. Default Value is 100% means that the pump produces its design capcity. A larger value can be used for pumps that can generate more GPM than thier design selection capacity.
A51: Pump | B51: $F$6 | C51: Calculated pump's maximum flow based on Design Delta T.
